{"text_format":"1","workbook":"xlsx","n_sheets":1,"sheets":["CATALOGO"],"not_rendered":{"charts":0,"images":2,"macros":1,"external_links":1,"defined_names":26,"comments":0,"pivot_tables":0},"unopened":[],"bounds":{"document_bytes":16777216,"sheet_cells":100000,"rows_first":2000,"rows_last":500,"rows_between":2000,"halvings":0,"cell_chars":16384,"cell_head_chars":4096},"cells_cut":0,"cells_raw":0,"read":"whole","date_system":"1900"}

{"sheet":"CATALOGO","index":0,"n_rows":316,"n_cols":7,"rows_kept":316,"cut":false,"hidden":false,"merged":[[2,0,2,6],[3,0,3,6],[4,0,4,6],[6,0,6,6],[8,0,8,6]]}
[]
[]
["H. XVII AYUNTAMIENTO DE LA PAZ"]
["DIRECCIÓN GENERAL DE GESTIÓN INTEGRAL DE LA CIUDAD"]
["DIRECCION DE OBRAS PUBLICAS"]
[]
["PRESUPUESTO"]
[]
["MEJORAMIENTO DE SEMÁFOROS  DE LA CIUDAD DE LA PAZ"]
[]
["CLAVE","CONCEPTO","UNIDAD","CANTIDAD","PRECIO UNITARIO","PRECIO UNITARIO CON LETRA","IMPORTE"]
["PF","SEMAFOROS PEATONALES EN  FORJADORES"]
["I.1","AVENIDA UNIVERSIDAD Y BOULEVARD FORJADORES (1)"]
[null,"I.-INSTALACIONES ESPECIALES"]
["PF-I.1.1","SUMINISTRO E INSTALACION DE SEMAFORO PEATONAL: INCLUYE: SEMÁFORO LED PEATONAL TIPO AMERICANO CON CRONÓMETRO DE 16” X 18”.FABRICADO EN POLICARBONATO DE ALTO IMPACTO, AJUSTE AUTOMÁTICO A LOS INTERVALOS PROGRAMADOS EN EL CONTROLADOR DE SEMÁFOROS, DÍGITOS DE CRONÓMETRO DE 9”, LUZ EMITIDA POR DIODOS, CRONÓMETRO DE LED EN COLOR ÁMBAR Y PEATÓN EN COLOR BLANCO, PEATÓN/MANO/CRONÓMETRO EN LA MISMA LÁMPARA., HERRAJE TIPO TELEFONO Y TUERCAS NIPLE DE ALUMINIO DE 38mm, ","PZA",9,null,null,{"$f":"D15*E15","v":0}]
["PF-I.1.2","SUMINISTRO, INSTALACION Y PROGRAMACION DE CONTROL ELECTRÓNICO C-216, GAB. C216, ALUM., 16 FASES, 16 ENTRADAS, 0 CANALES, S/AMP., GPS, MANUAL. INCLUYE :  INSTALACION Y PROGRAMACION DE CONTROL, SUMINISTRO DE MATERIALES,  HERRAMIENTA, EQUIPO, DESPERDICIOS Y MANO DE OBRA.","PZA",1,null,null,{"$f":"D16*E16","v":0}]
[null,"II.-INSTALACION ELECTRICA Y DE CONTROL"]
["PF-I.1.3","SUMINISTRO E INSTALACION DE TUBERÍA PAD 4 \" DE DIAMETRO, PARA CANALIZACION DE SEMAFOROS. INCLUYE: , COLOCACION DE TUBERIA, CONEXION AL REGISTRO ELECTRICO,  MANO DE OBRA, HERRAMIENTA Y EQUIPO.","ML",110,null,null,{"$f":"ROUND(D18*E18,2)","v":0}]
["PF-I.1.4","SUMINISTRO Y COLOCACIÓN DE REGISTRO ELÉCTRICO  PREFABRICADO DE 40x60x60 Cm, A BASE DE CONCRETO F'c = 150 Kg/Cm2. T.M.A. 3/4\". REV. DE 8 A 10 CMS. CON UN ESPESOR DE 10 CMS. PISO DE GRAVA, APLANADO INTERIOR PULIDO FINO, MARCO Y CONTRAMARCO METALICOS GALVANIZADOS ÁNGULO 1 1/2\"x 1/4\" Y TAPA DE CONCRETO ARMADO CON VARILLA CORRUGADA ALTA RESISTENCIA DEL No.2 @ 10 CMS. AMBOS SENTIDOS SOLDADAS, F'c = 250 Kg/Cm2. T.M.A. 3/4\". REVENIMIENTO DE 8 A 10 CMS. INCLUYE: EXCAVACION EN TERRENO INVESTIGADO EN SITIO, RELLENO COMPACTADO AL 90% MINIMO, CON MATERIAL SELECCIONADO PRODUCTO DE LA EXCAVACIÓN LIBRE DE BOLEO MAYOR DE 3\", NIVELADO A N.P.T., MANIOBRAS, MATERIALES, MANO DE OBRA, HERRAMIENTA Y EQUIPO NECESARIO","PZA",7,null,null,{"$f":"ROUND(D19*E19,2)","v":0}]
["PF-I.1.5","   DEMOLICIÓN Y REPOSICION DE CONCRETO O CARPETA ASFALTICA EN SANJA DE 30 CM DE ANCHO; INCLUYE CORTE CON REHILETE, DEMOLICIÓN, RETIRO DE ESCOMBRO, COLADO Y RESANADO CON CONCRETO F'C=150KG/CM2 O REPOSICION DE CARPETA ASFALTICA PARA INSTALACIONES ELECTRICAS PARA SEMAFOROS. MATERIALES NECESARIOS, DESPERDICIOS, HERRAMIENTA, EQUIPO Y MANO DE OBRA.","ML",110,null,null,0]
["I.2","BOULEVARD COLOSIO Y BOULEVARD FORJADORES (2)"]
[null,"I.-INSTALACIONES ESPECIALES"]
["PF-I.2.1","SUMINISTRO E INSTALACION DE SEMAFORO PEATONAL: INCLUYE: SEMÁFORO LED PEATONAL TIPO AMERICANO CON CRONÓMETRO DE 16” X 18”.FABRICADO EN POLICARBONATO DE ALTO IMPACTO, AJUSTE AUTOMÁTICO A LOS INTERVALOS PROGRAMADOS EN EL CONTROLADOR DE SEMÁFOROS, DÍGITOS DE CRONÓMETRO DE 9”, LUZ EMITIDA POR DIODOS, CRONÓMETRO DE LED EN COLOR ÁMBAR Y PEATÓN EN COLOR BLANCO, PEATÓN/MANO/CRONÓMETRO EN LA MISMA LÁMPARA., HERRAJE TIPO TELEFONO Y TUERCAS NIPLE DE ALUMINIO DE 38mm, ","PZA",12,null,null,{"$f":"ROUND(D23*E23,2)","v":0}]
["PF-I.2.2","SUMINISTRO, INSTALACION Y PROGRAMACION DE CONTROL ELECTRÓNICO C-216, GAB. C216, ALUM., 16 FASES, 16 ENTRADAS, 0 CANALES, S/AMP., GPS, MANUAL. INCLUYE :  INSTALACION Y PROGRAMACION DE CONTROL, SUMINISTRO DE MATERIALES,  HERRAMIENTA, EQUIPO, DESPERDICIOS Y MANO DE OBRA.","PZA",1,null,null,{"$f":"ROUND(D24*E24,2)","v":0}]
[null,"II.-INSTALACION ELECTRICA Y DE CONTROL"]
["PF-I.2.3","SUMINISTRO E INSTALACION DE TUBERÍA PAD 4 \" DE DIAMETRO, PARA CANALIZACION DE SEMAFOROS. INCLUYE: , COLOCACION DE TUBERIA, CONEXION AL REGISTRO ELECTRICO,  MANO DE OBRA, HERRAMIENTA Y EQUIPO.","ML",140,null,null,{"$f":"ROUND(D26*E26,2)","v":0}]
["PF-I.2.4","SUMINISTRO Y COLOCACIÓN DE REGISTRO ELÉCTRICO  PREFABRICADO DE 40x60x60 Cm, A BASE DE CONCRETO F'c = 150 Kg/Cm2. T.M.A. 3/4\". REV. DE 8 A 10 CMS. CON UN ESPESOR DE 10 CMS. PISO DE GRAVA, APLANADO INTERIOR PULIDO FINO, MARCO Y CONTRAMARCO METALICOS GALVANIZADOS ÁNGULO 1 1/2\"x 1/4\" Y TAPA DE CONCRETO ARMADO CON VARILLA CORRUGADA ALTA RESISTENCIA DEL No.2 @ 10 CMS. AMBOS SENTIDOS SOLDADAS, F'c = 250 Kg/Cm2. T.M.A. 3/4\". REVENIMIENTO DE 8 A 10 CMS. INCLUYE: EXCAVACION EN TERRENO INVESTIGADO EN SITIO, RELLENO COMPACTADO AL 90% MINIMO, CON MATERIAL SELECCIONADO PRODUCTO DE LA EXCAVACIÓN LIBRE DE BOLEO MAYOR DE 3\", NIVELADO A N.P.T., MANIOBRAS, MATERIALES, MANO DE OBRA, HERRAMIENTA Y EQUIPO NECESARIO","PZA",8,null,null,0]
["PF-I.2.5","   DEMOLICIÓN Y REPOSICION DE CONCRETO O CARPETA ASFALTICA EN SANJA DE 30 CM DE ANCHO; INCLUYE CORTE CON REHILETE, DEMOLICIÓN, RETIRO DE ESCOMBRO, COLADO Y RESANADO CON CONCRETO F'C=150KG/CM2 O REPOSICION DE CARPETA ASFALTICA PARA INSTALACIONES ELECTRICAS PARA SEMAFOROS. MATERIALES NECESARIOS, DESPERDICIOS, HERRAMIENTA, EQUIPO Y MANO DE OBRA.","ML",140,null,null,0]
["I.3","BOULEVARD 5 DE FEBRERO Y BOULEVARD FORJADORES (3)"]
[null,"I.-INSTALACIONES ESPECIALES"]
["PF-I.3.1","SUMINISTRO E INSTALACION DE SEMAFORO PEATONAL: INCLUYE: SEMÁFORO LED PEATONAL TIPO AMERICANO CON CRONÓMETRO DE 16” X 18”.FABRICADO EN POLICARBONATO DE ALTO IMPACTO, AJUSTE AUTOMÁTICO A LOS INTERVALOS PROGRAMADOS EN EL CONTROLADOR DE SEMÁFOROS, DÍGITOS DE CRONÓMETRO DE 9”, LUZ EMITIDA POR DIODOS, CRONÓMETRO DE LED EN COLOR ÁMBAR Y PEATÓN EN COLOR BLANCO, PEATÓN/MANO/CRONÓMETRO EN LA MISMA LÁMPARA., HERRAJE TIPO TELEFONO Y TUERCAS NIPLE DE ALUMINIO DE 38mm, ","PZA",9,null,null,{"$f":"ROUND(D31*E31,2)","v":0}]
["PF-I.3.2","SUMINISTRO, INSTALACION Y PROGRAMACION DE CONTROL ELECTRÓNICO C-216, GAB. C216, ALUM., 16 FASES, 16 ENTRADAS, 0 CANALES, S/AMP., GPS, MANUAL. INCLUYE :  INSTALACION Y PROGRAMACION DE CONTROL, SUMINISTRO DE MATERIALES,  HERRAMIENTA, EQUIPO, DESPERDICIOS Y MANO DE OBRA.","PZA",1,null,null,0]
[null,"II.-INSTALACION ELECTRICA Y DE CONTROL"]
["PF-I.3.3","SUMINISTRO E INSTALACION DE TUBERÍA PAD 4 \" DE DIAMETRO, PARA CANALIZACION DE SEMAFOROS. INCLUYE: , COLOCACION DE TUBERIA, CONEXION AL REGISTRO ELECTRICO,  MANO DE OBRA, HERRAMIENTA Y EQUIPO.","ML",80,null,null,{"$f":"ROUND(D34*E34,2)","v":0}]
["PF-I.3.4","SUMINISTRO Y COLOCACIÓN DE REGISTRO ELÉCTRICO  PREFABRICADO DE 40x60x60 Cm, A BASE DE CONCRETO F'c = 150 Kg/Cm2. T.M.A. 3/4\". REV. DE 8 A 10 CMS. CON UN ESPESOR DE 10 CMS. PISO DE GRAVA, APLANADO INTERIOR PULIDO FINO, MARCO Y CONTRAMARCO METALICOS GALVANIZADOS ÁNGULO 1 1/2\"x 1/4\" Y TAPA DE CONCRETO ARMADO CON VARILLA CORRUGADA ALTA RESISTENCIA DEL No.2 @ 10 CMS. AMBOS SENTIDOS SOLDADAS, F'c = 250 Kg/Cm2. T.M.A. 3/4\". REVENIMIENTO DE 8 A 10 CMS. INCLUYE: EXCAVACION EN TERRENO INVESTIGADO EN SITIO, RELLENO COMPACTADO AL 90% MINIMO, CON MATERIAL SELECCIONADO PRODUCTO DE LA EXCAVACIÓN LIBRE DE BOLEO MAYOR DE 3\", NIVELADO A N.P.T., MANIOBRAS, MATERIALES, MANO DE OBRA, HERRAMIENTA Y EQUIPO NECESARIO","PZA",5,null,null,0]
["PF-I.3.5","   DEMOLICIÓN Y REPOSICION DE CONCRETO O CARPETA ASFALTICA EN SANJA DE 30 CM DE ANCHO; INCLUYE CORTE CON REHILETE, DEMOLICIÓN, RETIRO DE ESCOMBRO, COLADO Y RESANADO CON CONCRETO F'C=150KG/CM2 O REPOSICION DE CARPETA ASFALTICA PARA INSTALACIONES ELECTRICAS PARA SEMAFOROS. MATERIALES NECESARIOS, DESPERDICIOS, HERRAMIENTA, EQUIPO Y MANO DE OBRA.","ML",80,null,null,0]
["I.4","CALLE UNION Y BOULEVARD FORJADORES (4)"]
[null,"I.-INSTALACIONES ESPECIALES"]
["PF-I.4.1","SUMINISTRO E INSTALACION DE SEMAFORO PEATONAL: INCLUYE: SEMÁFORO LED PEATONAL TIPO AMERICANO CON CRONÓMETRO DE 16” X 18”.FABRICADO EN POLICARBONATO DE ALTO IMPACTO, AJUSTE AUTOMÁTICO A LOS INTERVALOS PROGRAMADOS EN EL CONTROLADOR DE SEMÁFOROS, DÍGITOS DE CRONÓMETRO DE 9”, LUZ EMITIDA POR DIODOS, CRONÓMETRO DE LED EN COLOR ÁMBAR Y PEATÓN EN COLOR BLANCO, PEATÓN/MANO/CRONÓMETRO EN LA MISMA LÁMPARA., HERRAJE TIPO TELEFONO Y TUERCAS NIPLE DE ALUMINIO DE 38mm, ","PZA",10,null,null,{"$f":"ROUND(D39*E39,2)","v":0}]
["PF-I.4.2","SUMINISTRO, INSTALACION Y PROGRAMACION DE CONTROL ELECTRÓNICO C-216, GAB. C216, ALUM., 16 FASES, 16 ENTRADAS, 0 CANALES, S/AMP., GPS, MANUAL. INCLUYE :  INSTALACION Y PROGRAMACION DE CONTROL, SUMINISTRO DE MATERIALES,  HERRAMIENTA, EQUIPO, DESPERDICIOS Y MANO DE OBRA.","PZA",1,null,null,0]
[null,"II.-INSTALACION ELECTRICA Y DE CONTROL"]
["PF-I.4.3","SUMINISTRO E INSTALACION DE TUBERÍA PAD 4 \" DE DIAMETRO, PARA CANALIZACION DE SEMAFOROS. INCLUYE: , COLOCACION DE TUBERIA, CONEXION AL REGISTRO ELECTRICO,  MANO DE OBRA, HERRAMIENTA Y EQUIPO.","ML",105,null,null,{"$f":"ROUND(D42*E42,2)","v":0}]
["PF-I.4.4","SUMINISTRO Y COLOCACIÓN DE REGISTRO ELÉCTRICO  PREFABRICADO DE 40x60x60 Cm, A BASE DE CONCRETO F'c = 150 Kg/Cm2. T.M.A. 3/4\". REV. DE 8 A 10 CMS. CON UN ESPESOR DE 10 CMS. PISO DE GRAVA, APLANADO INTERIOR PULIDO FINO, MARCO Y CONTRAMARCO METALICOS GALVANIZADOS ÁNGULO 1 1/2\"x 1/4\" Y TAPA DE CONCRETO ARMADO CON VARILLA CORRUGADA ALTA RESISTENCIA DEL No.2 @ 10 CMS. AMBOS SENTIDOS SOLDADAS, F'c = 250 Kg/Cm2. T.M.A. 3/4\". REVENIMIENTO DE 8 A 10 CMS. INCLUYE: EXCAVACION EN TERRENO INVESTIGADO EN SITIO, RELLENO COMPACTADO AL 90% MINIMO, CON MATERIAL SELECCIONADO PRODUCTO DE LA EXCAVACIÓN LIBRE DE BOLEO MAYOR DE 3\", NIVELADO A N.P.T., MANIOBRAS, MATERIALES, MANO DE OBRA, HERRAMIENTA Y EQUIPO NECESARIO","PZA",7,null,null,0]
["PF-I.4.5","   DEMOLICIÓN Y REPOSICION DE CONCRETO O CARPETA ASFALTICA EN SANJA DE 30 CM DE ANCHO; INCLUYE CORTE CON REHILETE, DEMOLICIÓN, RETIRO DE ESCOMBRO, COLADO Y RESANADO CON CONCRETO F'C=150KG/CM2 O REPOSICION DE CARPETA ASFALTICA PARA INSTALACIONES ELECTRICAS PARA SEMAFOROS. MATERIALES NECESARIOS, DESPERDICIOS, HERRAMIENTA, EQUIPO Y MANO DE OBRA.","ML",105,null,null,0]
["I.5 ","ACCESO A UABCS Y BOULEVARD FORJADORES (5)"]
[null,"I.-INSTALACIONES ESPECIALES"]
["PF-I.5.1","SUMINISTRO E INSTALACION DE SEMAFORO PEATONAL: INCLUYE: SEMÁFORO LED PEATONAL TIPO AMERICANO CON CRONÓMETRO DE 16” X 18”.FABRICADO EN POLICARBONATO DE ALTO IMPACTO, AJUSTE AUTOMÁTICO A LOS INTERVALOS PROGRAMADOS EN EL CONTROLADOR DE SEMÁFOROS, DÍGITOS DE CRONÓMETRO DE 9”, LUZ EMITIDA POR DIODOS, CRONÓMETRO DE LED EN COLOR ÁMBAR Y PEATÓN EN COLOR BLANCO, PEATÓN/MANO/CRONÓMETRO EN LA MISMA LÁMPARA., HERRAJE TIPO TELEFONO Y TUERCAS NIPLE DE ALUMINIO DE 38mm, ","PZA",7,null,null,{"$f":"ROUND(D47*E47,2)","v":0}]
["PF-I.5.2","SUMINISTRO, INSTALACION Y PROGRAMACION DE CONTROL ELECTRÓNICO C-216, GAB. C216, ALUM., 16 FASES, 16 ENTRADAS, 0 CANALES, S/AMP., GPS, MANUAL. INCLUYE :  INSTALACION Y PROGRAMACION DE CONTROL, SUMINISTRO DE MATERIALES,  HERRAMIENTA, EQUIPO, DESPERDICIOS Y MANO DE OBRA.","PZA",1,null,null,0]
[null,"II.-INSTALACION ELECTRICA Y DE CONTROL"]
["PF-I.5.3","SUMINISTRO E INSTALACION DE TUBERÍA PAD 4 \" DE DIAMETRO, PARA CANALIZACION DE SEMAFOROS. INCLUYE: , COLOCACION DE TUBERIA, CONEXION AL REGISTRO ELECTRICO,  MANO DE OBRA, HERRAMIENTA Y EQUIPO.","ML",110,null,null,{"$f":"ROUND(D50*E50,2)","v":0}]
["PF-I.5.4","SUMINISTRO Y COLOCACIÓN DE REGISTRO ELÉCTRICO  PREFABRICADO DE 40x60x60 Cm, A BASE DE CONCRETO F'c = 150 Kg/Cm2. T.M.A. 3/4\". REV. DE 8 A 10 CMS. CON UN ESPESOR DE 10 CMS. PISO DE GRAVA, APLANADO INTERIOR PULIDO FINO, MARCO Y CONTRAMARCO METALICOS GALVANIZADOS ÁNGULO 1 1/2\"x 1/4\" Y TAPA DE CONCRETO ARMADO CON VARILLA CORRUGADA ALTA RESISTENCIA DEL No.2 @ 10 CMS. AMBOS SENTIDOS SOLDADAS, F'c = 250 Kg/Cm2. T.M.A. 3/4\". REVENIMIENTO DE 8 A 10 CMS. INCLUYE: EXCAVACION EN TERRENO INVESTIGADO EN SITIO, RELLENO COMPACTADO AL 90% MINIMO, CON MATERIAL SELECCIONADO PRODUCTO DE LA EXCAVACIÓN LIBRE DE BOLEO MAYOR DE 3\", NIVELADO A N.P.T., MANIOBRAS, MATERIALES, MANO DE OBRA, HERRAMIENTA Y EQUIPO NECESARIO","PZA",7,null,null,0]
["PF-I.5.5","SUMINISTRO Y COLOCACIÓN DE CABLE DE ALUMINIO TRIPLEX XLP No. (2-4+1-4 ) (SUBTERRANEO) EN CANALIZACIÓN ELÉCTRICA, INCLUYE CARGO DIRECTO POR EL COSTO DE MANO DE OBRA Y MATERIALES REQUERIDOS, FLETE A OBRA, ACARREO, CORTE, COLOCACIÓN, CINTA AISLANTE, CINTA VULCANIZABLE, CONECTORES PONCHABLES BIMETALICOS (PUROS) EN CALIBRE ADECUADO, FIJACIÓN, LIMPIEZA Y RETIRO DE SOBRANTES FUERA DE OBRA, EQUIPO DE SEGURIDAD, INSTALACIONES ESPECÍFICAS, DEPRECIACIÓN Y DEMÁS CARGOS DERIVADOS DEL USO DE EQUIPO Y HERRAMIENTA, EN CUALQUIER NIVEL.","ML",55,null,null,0]
["PF-I.5.6","SUMINISTRO Y TENDIDO DE RED DE ALIMENTACIÓN DE LUMINARIAS A BASE DE TUBO PVC CONDUIT PESADO DE 1 1/4 \", INCLUYE: EXCAVACIÓN, CAMA DE ARENA, TENDIDO, RELLENO, MATERILES, MANO DE OBRA, HERRAMIENTA Y EQUIPO NECESARIO PARA SU BUEN FUNCIONAMIENTO.","ML",55,null,null,0]
["PF-I.5.7","   DEMOLICIÓN Y REPOSICION DE CONCRETO O CARPETA ASFALTICA EN SANJA DE 30 CM DE ANCHO; INCLUYE CORTE CON REHILETE, DEMOLICIÓN, RETIRO DE ESCOMBRO, COLADO Y RESANADO CON CONCRETO F'C=150KG/CM2 O REPOSICION DE CARPETA ASFALTICA PARA INSTALACIONES ELECTRICAS PARA SEMAFOROS. MATERIALES NECESARIOS, DESPERDICIOS, HERRAMIENTA, EQUIPO Y MANO DE OBRA.","ML",110,null,null,0]
["I.6","CALLE ORO Y BOULEVARD FORJADORES (6)"]
[null,"I.-INSTALACIONES ESPECIALES"]
["PF-I.6.1","SUMINISTRO E INSTALACION DE SEMAFORO PEATONAL: INCLUYE: SEMÁFORO LED PEATONAL TIPO AMERICANO CON CRONÓMETRO DE 16” X 18”.FABRICADO EN POLICARBONATO DE ALTO IMPACTO, AJUSTE AUTOMÁTICO A LOS INTERVALOS PROGRAMADOS EN EL CONTROLADOR DE SEMÁFOROS, DÍGITOS DE CRONÓMETRO DE 9”, LUZ EMITIDA POR DIODOS, CRONÓMETRO DE LED EN COLOR ÁMBAR Y PEATÓN EN COLOR BLANCO, PEATÓN/MANO/CRONÓMETRO EN LA MISMA LÁMPARA., HERRAJE TIPO TELEFONO Y TUERCAS NIPLE DE ALUMINIO DE 38mm, ","PZA",12,null,null,{"$f":"ROUND(D57*E57,2)","v":0}]
["PF-I.6.2","SUMINISTRO, INSTALACION Y PROGRAMACION DE CONTROL ELECTRÓNICO C-216, GAB. C216, ALUM., 16 FASES, 16 ENTRADAS, 0 CANALES, S/AMP., GPS, MANUAL. INCLUYE :  INSTALACION Y PROGRAMACION DE CONTROL, SUMINISTRO DE MATERIALES,  HERRAMIENTA, EQUIPO, DESPERDICIOS Y MANO DE OBRA.","PZA",1,null,null,0]
[null,"II.-INSTALACION ELECTRICA Y DE CONTROL"]
["PF-I.6.3","SUMINISTRO E INSTALACION DE TUBERÍA PAD 4 \" DE DIAMETRO, PARA CANALIZACION DE SEMAFOROS. INCLUYE: , COLOCACION DE TUBERIA, CONEXION AL REGISTRO ELECTRICO,  MANO DE OBRA, HERRAMIENTA Y EQUIPO.","ML",130,null,null,{"$f":"ROUND(D60*E60,2)","v":0}]
["PF-I.6.4","SUMINISTRO Y COLOCACIÓN DE REGISTRO ELÉCTRICO  PREFABRICADO DE 40x60x60 Cm, A BASE DE CONCRETO F'c = 150 Kg/Cm2. T.M.A. 3/4\". REV. DE 8 A 10 CMS. CON UN ESPESOR DE 10 CMS. PISO DE GRAVA, APLANADO INTERIOR PULIDO FINO, MARCO Y CONTRAMARCO METALICOS GALVANIZADOS ÁNGULO 1 1/2\"x 1/4\" Y TAPA DE CONCRETO ARMADO CON VARILLA CORRUGADA ALTA RESISTENCIA DEL No.2 @ 10 CMS. AMBOS SENTIDOS SOLDADAS, F'c = 250 Kg/Cm2. T.M.A. 3/4\". REVENIMIENTO DE 8 A 10 CMS. INCLUYE: EXCAVACION EN TERRENO INVESTIGADO EN SITIO, RELLENO COMPACTADO AL 90% MINIMO, CON MATERIAL SELECCIONADO PRODUCTO DE LA EXCAVACIÓN LIBRE DE BOLEO MAYOR DE 3\", NIVELADO A N.P.T., MANIOBRAS, MATERIALES, MANO DE OBRA, HERRAMIENTA Y EQUIPO NECESARIO","PZA",8,null,null,0]
["PF-I.6.5","   DEMOLICIÓN Y REPOSICION DE CONCRETO O CARPETA ASFALTICA EN SANJA DE 30 CM DE ANCHO; INCLUYE CORTE CON REHILETE, DEMOLICIÓN, RETIRO DE ESCOMBRO, COLADO Y RESANADO CON CONCRETO F'C=150KG/CM2 O REPOSICION DE CARPETA ASFALTICA PARA INSTALACIONES ELECTRICAS PARA SEMAFOROS. MATERIALES NECESARIOS, DESPERDICIOS, HERRAMIENTA, EQUIPO Y MANO DE OBRA.","ML",130,null,null,0]
["SPV","SEMAFOROS PAR VIAL"]
["II.1","LIBRAMIENTO JUAN DE DIOS ANGULO Y FRANCISCO J. MUJICA. (7) "]
[null,"I.-GUARNICIONES, BANQUETAS Y EQUIPAMIENTO"]
["SPV.II.1","DEMOLICION DE GUARNICIONES DE CONCRETO EXISTENTES POR ENCONTRARSE EN MALAS CONDICIONES Y/O NO DAR LOS NIVELES DE PROYECTO. INCLUYE: CORTE CON CORTADORA DE DISCO, CARGA Y RETIRO DE ESCOMBRO FUERA DE LA OBRA HASTA EL LUGAR INDICADO POR LA SUPERVISION, LA MANO DE OBRA, HERRAMIENTA Y EQUIPO NECESARIO.","ML",39.159999999999997,null,null,{"$f":"ROUND(D66*E66,2)","v":0}]
["SPV.II.2","REPARACION DE GUARNICION; INCLUYE: LIMPIEZA DE LA SUPERFICIE, RESANES CON MORTERO CEMENTO-ARENA PROP. 1:4, PASTA PARA ACABADO PULIDO, PEGACRETO, MATERIALES NECESARIOS, DESPERDICIOS, LIMPIEZA DURANTE EL PROCESO, MANO DE OBRA, HERRAMIENTA Y EQUIPO.","ML",11,null,null,0]
["SPV.II.3","CONSTRUCCION DE GUARNICION DE CONCRETO F´c=150 kg/cm2. R.N. T.M.A. 19 MM. DE 15X20X40 CM DE SECCION TRAPEZOIDAL, CORTE DE JUNTAS VERTICALES CON CORTADORA DE DISCO DE DIAMANTE A UNA PROFUNDIDAD DE 1/3 DEL PERALTE DE LA GUARNICION, LA MODULACION SERÁ INDICADA POR SUPERVISIÓN, SELLADO DE LA JUNTA CON CINTILLA DE POLIETILENO Y Y SELLADOR AUTONIVELANTE A BASE DE  POLIURETANO-ASFALTO TIPO SONOMERIC 1 Ó SIMILAR. INCLUYE: CIMBRA, DESCIMBRADO, ELABORACION, COLADO, VIBRADO Y CURADO DEL CONCRETO, TRANSPORTE A LA SIGUIENTE POSICION, MATERIALES, MANO DE OBRA Y HERRAMIENTA.","ML",133.84,null,null,0]
["SPV.II.4","CONSTRUCCION DE PISO DE 10 CM DE ESPESOR, ACABADO, PULIDO Y ESCOBILLADO FINO, SE USARA EL SISTEMA DE LOSAS INTERCALADAS CON UNA RELACION LARGO/ANCHO DE HASTA 1.50, JUNTAS FRIAS ACABADO CON VOLTEADOR.  EL CONCRETO SERA F´C= 150 KG/CM2. T.M.A. 3/4\". REV. DE 8 A 10 CM PREMEZCLADO ELABORADO EN PLANTA, REFORZADO CON MALLA ELECTROSOLDADA 6-6/10-10; INCLUYE: PREPARACION DE LA SUPERFICIE DEL TERRENO, NIVELACION, AFINE, COMPACTACION AL 95 %, CIMBRA EN FRONTERAS, SUMINISTRO, COLADO, EXTENDIDO DEL CONCRETO, TRAZO Y NIVELACION, SUMINISTRO DE TODOS LOS MATERIALES NECESARIOS, ACARREOS, DESPERDICIOS, MANO DE OBRA,  HERRAMIENTA Y EQUIPO NECESARIO, LIMPIEZA GENERAL ANTES Y UNA VEZ CONCLUIDOS LOS TRABAJOS, CARGA Y ACARREO DE LOS MATERIALES NO UTILIZABLES HASTA EL LUGAR INDICADO POR SUPERVISION.","M2",31.3,null,null,0]
["SPV.II.5","RAMPA DE CONCRETO DE 10CM DE ESPESOR, DE CONCRETO F’C=150 KG/ CM2.  REFORZADO CON MALLA ELECTROSOLDADA 6-6/10-10, ACABADO PULIDO ESCOBILLADO FINO;  INCLUYE: TRAZO Y AFINE DE TERRENO SEGUN SE REQUIERA SIN ESCALONES, MANO DE OBRA, MATERIALES, EQUIPO, HERRAMIENTA Y LIMPIEZA.","M2",30.96,null,null,0]
["SPV.II.6","SUMINISTRO Y COLOCACIÓN DE  PINTURA EN RAMPAS DE TRAFICO DE COLOR AZUL, ACORDE A LAS NORMAS DE SEÑALAMIENTO HORIZONTAL Y DE MATERIALES,  INCLUYE: LIMPIEZA DEL ÁREA A APLICAR , MATERIAL, MANO DE OBRA, EQUIPO Y HERRAMIENTA. P.U.O.T.","M2",30.96,null,null,0]
["SPV.II.7","SUMINISTRO Y APLICACIÓN DE PINTURA VINILICA AHULADA MARCA COMEX, EN COLOR BLANCO O AMARILLO (PREVIAMENTE AUTORIZADO) EN TRAMOS RECTOS Y ROJO EN CURVAS, A DOS MANOS EN GUANICIONES DE CONCRETO, INCLUYE: PREPARACION DE LA SUPERFICIE, LIMPIEZA, MATERIALES, MANO DE OBRA Y HERRAMIENTA.","ML",143,null,null,0]
[null,"II.- SEÑALAMIENTO VERTICAL Y HORIZONTAL"]
["SPV.II.8","SUMINISTRO Y APLICACION DE PINTURA DE MARCAS M-7.1 RAYAS PARA CRUCE DE PEATONES EN VÍAS PRIMARIAS, CON PINTURA TERMOPLÁSTICA COLOR AMARILLO RETRORREFLEJANTE DE 40 CM DE ANCHO,  INCLUYE LIMPIEZA POR ASPERSION PARA ELIMINAR LA PRESENCIA DE POLVO, GRASA, ACEITE Y CUALQUIER MATERIAL, MATERIALES, MANO DE OBRA, HERRAMIENTA Y EQUIPO NECESARIO.","ML",{"$f":"44*4","v":176},null,null,{"$f":"ROUND(D74*E74,2)","v":0}]
["SPV.II.9","SUMINISTRO Y APLICACION DE PINTURA PARA LINEA DE ALTO DE COLOR BLANCO PREVIAMENTE AUTORIZADO POR SUPERVISION CON PINTURA TERMOPLÁSTICA PARA TRAFICO MARCA SEMEX, Y SE LE APLICARA UN REFLEJANTE CON MICROESFERA, Y SU APLICACION SERA SEGUN LO INDICADO EN EL MANUAL DE DISPOSITIVOS PARA EL CONTROL DEL TRANSITO EN CALLES Y CARRETERAS, INCLUYE: LIMPIEZA POR ASPERSION PARA ELIMINAR LA PRESENCIA DE POLVO, GRASA, ACEITE Y CUALQUIER MATERIAL, MATERIALES, MANO DE OBRA, HERRAMIENTA Y EQUIPO NECESARIO. P.U.O.T. ","ML",15,null,null,0]
["SPV.II.10","SUMINISTRO Y APLICACION DE PINTURA PARA FLECHAS, LETRAS, NUMEROS DE COLOR BLANCO PREVIAMENTE AUTORIZADO POR SUPERVISION CON PINTURA TERMOPLÁSTICA PARA TRAFICO MARCA SEMEX, Y SE LE APLICARA UN REFLEJANTE CON MICROESFERA, Y SU APLICACION SERA SEGUN LO INDICADO EN EL MANUAL DE DISPOSITIVOS PARA EL CONTROL DEL TRANSITO EN CALLES Y CARRETERAS, INCLUYE: LIMPIEZA POR ASPERSION PARA ELIMINAR LA PRESENCIA DE POLVO, GRASA, ACEITE Y CUALQUIER MATERIAL, MATERIALES, MANO DE OBRA, HERRAMIENTA Y EQUIPO NECESARIO. P.U.O.T. ","PZA",6,null,null,0]
["SPV.II.11","SUMINISTRO Y APLICACION DE PINTURA PARA FLECHA CURVA, DE COLOR BLANCO PREVIAMENTE AUTORIZADO POR SUPERVISION CON PINTURA TERMOPLÁSTICA PARA TRAFICO MARCA SEMEX, Y SE LE APLICARA UN REFLEJANTE CON MICROESFERA, Y SU APLICACION SERA SEGUN LO INDICADO EN EL MANUAL DE DISPOSITIVOS PARA EL CONTROL DEL TRANSITO EN CALLES Y CARRETERAS, INCLUYE: LIMPIEZA POR ASPERSION PARA ELIMINAR LA PRESENCIA DE POLVO, GRASA, ACEITE Y CUALQUIER MATERIAL, MATERIALES, MANO DE OBRA, HERRAMIENTA Y EQUIPO NECESARIO. P.U.O.T. ","PZA",1,null,null,0]
["SPV.II.12","SUMINISTRO Y APLICACION DE PINTURA PARA FLECHAS DOBLE, DE COLOR BLANCO PREVIAMENTE AUTORIZADO POR SUPERVISION CON PINTURA TERMOPLÁSTICA PARA TRAFICO MARCA SEMEX, Y SE LE APLICARA UN REFLEJANTE CON MICROESFERA, Y SU APLICACION SERA SEGUN LO INDICADO EN EL MANUAL DE DISPOSITIVOS PARA EL CONTROL DEL TRANSITO EN CALLES Y CARRETERAS, INCLUYE: LIMPIEZA POR ASPERSION PARA ELIMINAR LA PRESENCIA DE POLVO, GRASA, ACEITE Y CUALQUIER MATERIAL, MATERIALES, MANO DE OBRA, HERRAMIENTA Y EQUIPO NECESARIO. P.U.O.T. ","PZA",2,null,null,0]
[null,"III.-INSTALACIONES ESPECIALES"]
["SPV.II.12","CONSTRUCCION DE BASE DE CONCRETO PARA ESTRUCTURA TIPO CONTEMPORANEA DE CONCRETO F’C=200 KG/CM² CON DIMENSIONES DE 0.70 M X 0.70 M X 2.00 M Y 8 ANCLAS DE ACERO DE ALTA RESISTENCIA ROSCADAS EN SU PARTE SUPERIOR, DE 1” DE DIÁMETRO POR 2.00 M DE LONGITUD.,INCLUYE: JUEGO DE 2 ANCLAS DE 1\"X200CM DE ACERO DE ALTA RESISTENCIA, 15 CM DE ROSCA, CON PUNTAS GALV. Y TORN.\n","PZA",3,null,null,{"$f":"ROUND(D80*E80,2)","v":0}]
["SPV.II.13","CONSTRUCCION DE BASE DE CONCRETO PARA EL POSTE DEL CONTROLADOR, A BASE DE CONCRETO F’C=200 KG/CM² CON DIMENSIONES DE 0.48 M X 0.65 M X 1.00 M Y 4 ANCLAS DE ACERO DE ALTA RESISTENCIA ROSCADAS EN SU PARTE SUPERIOR, DE 5/8” DE DIÁMETRO POR 0.60 M DE LONGITUD.,INCLUYE: MATERIALES, MANO DE OBRA, HERRAMIENTA Y EQUIPO NECESARIO.\n","PZA",1,null,null,0]
["SPV.II.14","SUMINISTRO Y COLOCACIÓN DE REGISTRO ELÉCTRICO  PREFABRICADO DE 40x60x60 Cm, A BASE DE CONCRETO F'c = 150 Kg/Cm2. T.M.A. 3/4\". REV. DE 8 A 10 CMS. CON UN ESPESOR DE 10 CMS. PISO DE GRAVA, APLANADO INTERIOR PULIDO FINO, MARCO Y CONTRAMARCO METALICOS GALVANIZADOS ÁNGULO 1 1/2\"x 1/4\" Y TAPA DE CONCRETO ARMADO CON VARILLA CORRUGADA ALTA RESISTENCIA DEL No.2 @ 10 CMS. AMBOS SENTIDOS SOLDADAS, F'c = 250 Kg/Cm2. T.M.A. 3/4\". REVENIMIENTO DE 8 A 10 CMS. INCLUYE: EXCAVACION EN TERRENO INVESTIGADO EN SITIO, RELLENO COMPACTADO AL 90% MINIMO, CON MATERIAL SELECCIONADO PRODUCTO DE LA EXCAVACIÓN LIBRE DE BOLEO MAYOR DE 3\", NIVELADO A N.P.T., MANIOBRAS, MATERIALES, MANO DE OBRA, HERRAMIENTA Y EQUIPO NECESARIO","PZA",3,null,null,0]
["SPV.II.15","SUMINISTRO Y COLOCACION DE ESTRUCTURA PARA SEMAFORO TIPO CONTEMPORANEA SENCILLA A BASE DETUBO DE ACERO A-53 DE 8” DIÁMETRO (8.625 NOMINAL) Y ESPESOR DE 3/16”, CON 550 CM DE ALTURA, CON PLACA BASE DE ¾” X 50 CM DE DIÁMETRO, UNIDA CON 8 CARTABONES TRIANGULARES DE FO. DE ¼” DE 7 X 15 CM Y UNA PLACA UNIÓN (ENTRE POSTE Y BRAZO) DE 3/4” X 40 X 40 CM; UN REGISTRO ELÉCTRICO EN SU BASE, FABRICADO DE SOLERA CAL. 10 DE 3.8 X 19 CM CON TAPA DE ALUMINIO Y UN MEDIO COPLE EN EL POSTE DE 1 ½” DE DIÁMETRO, CON ACCESORIOS PARA LA COLOCACIÓN DE SEMÁFOROS COMO SON: NIPLE DE 1 ½” CÉDULA 40, CODO 90° CÉDULA 40 1 ½”, CONTRATUERCA DE 1 ½”, HERRAJE PARA POSTE DE 12 X 25.5 CM, TAPÓN PARA SEMÁFORO, TUERCA CUADRADA DE 3/16” Y LÁMINA CAL. 16 DE 2.5 X 7 CM. CON 1 BRAZO: SERÁ FABRICADO CON TUBO DE ACERO A-53 DE 8” DE DIÁMETRO ROLADO (8.625 NOMINAL) Y ESPESOR DE 3/16” CON UNA LONGITUD DE BRAZO VARIABLE, DE ACUERDO A PROYECTO, PLACA UNIÓN (ENTRE POSTE Y BRAZO) DE 3/4” DE 40 X 40 CM UNIDA CON 8 CARTABONES ESPECIALES DE FO. DE 1/2” X 17 X 15 CM, ACCESORIOS PARA LA COLOCACIÓN DE SEMÁFOROS: CUATRO MEDIOS COPLES DE 1 ½” DE DIÁMETRO, CUATRO NIPLES DE 1 ½” CÉDULA 40, CUATRO CODOS A 90° CÉDULA. 40 1 ½”, CUATRO CONTRATUERCAS DE 1 ½”, DOS TORNILLOS OPRESORES DE ¼”, DOS NIPLES DE 2” CÉDULA 40 DE 10 CM DE LONGITUD Y DOS NIPLES DE 1 ½” CÉDULA 40 DE 24 CM DE LONGITUD. TODA LA ESTRUCTURA DEBERÁ SER GALVANIZADA, CON ACABADO FONDO ANTICORROSIVO Y PINTURA DEL COLOR DE ACUERDO AL PROYECTO Y REGLAMENTOS VIGENTES DE LA CIUDAD.: INCLUYE: MANIOBRAS, MATERIALES, MANO DE OBRA, HERRAMIENTA Y EQUIPO NECESARIO. ","PZA",3,null,null,0]
["SPV.II.16","SUMINISTRO E INSTALACION DE POSTE GALVANIZADO PARA CONTROLADOR C-210; INCLUYE: MATERIALES NECESARIOS, MANIOBRAS, CONSUMIBLES, DESPERDICIOS, HERRAMIENTA, EQUIPO Y MANO DE OBRA.","PZA",1,null,null,0]
["SPV.II.17","SUMINISTRO E INSTALACION DE SEMAFORO EN EXTREMO: INCLUYE: SEMAFORO DE 4 LUCES DE 30cmS DE DIAMETRO FAB, EN POOLICARBONATO DE ALTO IMPACTO COLOR NEGRO CON DIODOS ELECROLULIMINCENTES TIPO LED´S TRANSPARENTES DE ALTA INTENSIDAD, HERRAJE TIPO TELEFONO Y TUERCAS NIPLE DE ALUMINIO DE 38mm, ","PZA",6,null,null,0]
["SPV.II.18","SUMINISTRO, INSTALACION Y PROGRAMACION DE CONTROL ELECTRÓNICO C-210. INCLUYE :  INSTALACION Y PROGRAMACION DE CONTROL, SUMINISTRO DE MATERIALES,  HERRAMIENTA, EQUIPO, DESPERDICIOS Y MANO DE OBRA.","PZA",1,null,null,0]
[null,"IV. INSTALACIONES ELECTRICAS Y DE CONTROL"]
["SPV.II.19","SUMINISTRO E INSTALACION DE CABLE DE USO RUDO 5X14,  INCLUYE CARGO DIRECTO POR EL COSTO DE MANO DE OBRA Y MATERIALES REQUERIDOS, FLETE A OBRA, ACARREO, CORTE, COLOCACIÓN, CINTA AISLANTE, CINTA VULCANIZABLE, CONECTORES PONCHABLES BIMETALICOS (PUROS) EN CALIBRE ADECUADO, FIJACIÓN, LIMPIEZA Y RETIRO DE SOBRANTES FUERA DE OBRA, EQUIPO DE SEGURIDAD, INSTALACIONES ESPECÍFICAS, DEPRECIACIÓN Y DEMÁS CARGOS DERIVADOS DEL USO DE EQUIPO Y HERRAMIENTA, EN CUALQUIER NIVEL.","ML",400,null,null,0]
["SPV.II.20","SUMINISTRO E INSTALACION DE TUBERÍA PAD 4 \" DE DIAMETRO, PARA CANALIZACION DE SEMAFOROS. INCLUYE: , COLOCACION DE TUBERIA, CONEXION AL REGISTRO ELECTRICO,  MANO DE OBRA, HERRAMIENTA Y EQUIPO.","ML",60,null,null,0]
["SPV.II.21","SUMINISTRO Y COLOCACIÓN DE REGISTRO ELÉCTRICO  PREFABRICADO DE 40x60x60 Cm, A BASE DE CONCRETO F'c = 150 Kg/Cm2. T.M.A. 3/4\". REV. DE 8 A 10 CMS. CON UN ESPESOR DE 10 CMS. PISO DE GRAVA, APLANADO INTERIOR PULIDO FINO, MARCO Y CONTRAMARCO METALICOS GALVANIZADOS ÁNGULO 1 1/2\"x 1/4\" Y TAPA DE CONCRETO ARMADO CON VARILLA CORRUGADA ALTA RESISTENCIA DEL No.2 @ 10 CMS. AMBOS SENTIDOS SOLDADAS, F'c = 250 Kg/Cm2. T.M.A. 3/4\". REVENIMIENTO DE 8 A 10 CMS. INCLUYE: EXCAVACION EN TERRENO INVESTIGADO EN SITIO, RELLENO COMPACTADO AL 90% MINIMO, CON MATERIAL SELECCIONADO PRODUCTO DE LA EXCAVACIÓN LIBRE DE BOLEO MAYOR DE 3\", NIVELADO A N.P.T., MANIOBRAS, MATERIALES, MANO DE OBRA, HERRAMIENTA Y EQUIPO NECESARIO","PZA",4,null,null,0]
["SPV.II.22","SUMINISTRO Y COLOCACIÓN DE CABLE DE ALUMINIO TRIPLEX XLP No. (2-4+1-4 ) (SUBTERRANEO) EN CANALIZACIÓN ELÉCTRICA, INCLUYE CARGO DIRECTO POR EL COSTO DE MANO DE OBRA Y MATERIALES REQUERIDOS, FLETE A OBRA, ACARREO, CORTE, COLOCACIÓN, CINTA AISLANTE, CINTA VULCANIZABLE, CONECTORES PONCHABLES BIMETALICOS (PUROS) EN CALIBRE ADECUADO, FIJACIÓN, LIMPIEZA Y RETIRO DE SOBRANTES FUERA DE OBRA, EQUIPO DE SEGURIDAD, INSTALACIONES ESPECÍFICAS, DEPRECIACIÓN Y DEMÁS CARGOS DERIVADOS DEL USO DE EQUIPO Y HERRAMIENTA, EN CUALQUIER NIVEL.","ML",15,null,null,0]
["SPV.II.23","SUMINISTRO Y TENDIDO DE RED DE ALIMENTACIÓN DE LUMINARIAS A BASE DE TUBO PVC CONDUIT PESADO DE 1 1/4 \", INCLUYE: EXCAVACIÓN, CAMA DE ARENA, TENDIDO, RELLENO, MATERILES, MANO DE OBRA, HERRAMIENTA Y EQUIPO NECESARIO PARA SU BUEN FUNCIONAMIENTO.","ML",15,null,null,0]
["SPV.II.24","SUMINISTRO Y COLOCACIÓN DE INTERRUPTOR TERMOMAGNETICO SENCILLO DE  40 A , SEGÚN SE REQUIERA MARCA SQUARE D, ALUMBRADO 15 A, CONTACTOS 15 A, INCLUYE INSTALACIÓN, CONEXIÓN AJUSTES Y TODO LO NECESARIO PARA SU CORRECTA INSTALACIÓN","PZA",1,null,null,0]
["SPV.II.25","SUMINISTRO  E INSTALACION DE ALIMENTACIÓN ELECTRICA DE PARA CENTRO DE CARGA DE 2 CIRCUITOS,  A BASE DE TUBERIA FLEXIBLE TIPO LIQUID TIGHT DE 1/2  \", DOS CONDUCTORES DE COBRE CALIBRE 10 AWG PARA FASES,1 CONDUCTOR DE COBRE CALIBRE 14 AWG PARA TIERRA FISICA. INCLUYE:  CONEXION  DE CABLEADO EN  OPRESORES DE BRAKE PRINCIPAL DE  MURETE,  MATERILES, MANO DE OBRA, HERRAMIENTA Y EQUIPO NECESARIO PARA SU BUEN FUNCIONAMIENTO.","LOTE",1,null,null,0]
["SPV.II.26","SUMINISTRO  E INSTALACION DE ALIMENTACIÓN ELECTRICA PARA CENTRO DE CARGA DE 2 CIRCUITOS,  A BASE DE TUBERIA FLEXIBLE TIPO LIQUID TIGHT DE 1/2  \", DOS CONDUCTORES DE COBRE CALIBRE 10 AWG PARA FASES,1 CONDUCTOR DE COBRE CALIBRE 14 AWG PARA TIERRA FISICA. INCLUYE:  CONEXION  DE CABLEADO EN  OPRESORES DE BRAKE PRINCIPAL DE  MURETE,  MATERILES, MANO DE OBRA, HERRAMIENTA Y EQUIPO NECESARIO PARA SU BUEN FUNCIONAMIENTO.","LOTE",1,null,null,0]
["SPV.II.27","   DEMOLICIÓN Y REPOSICION DE CONCRETO O CARPETA ASFALTICA EN SANJA DE 30 CM DE ANCHO; INCLUYE CORTE CON REHILETE, DEMOLICIÓN, RETIRO DE ESCOMBRO, COLADO Y RESANADO CON CONCRETO F'C=150KG/CM2 O REPOSICION DE CARPETA ASFALTICA PARA INSTALACIONES ELECTRICAS PARA SEMAFOROS. MATERIALES NECESARIOS, DESPERDICIOS, HERRAMIENTA, EQUIPO Y MANO DE OBRA.","ML",60,null,null,0]
["II.2","LIBRAMIENTO JUAN DE DIOS ANGULO Y CARABINEROS (8) "]
[null,"I. GUARNICIONES, BANQUETAS Y EQUIPAMIENTO"]
["SPV.II.28","DEMOLICION DE GUARNICIONES DE CONCRETO EXISTENTES POR ENCONTRARSE EN MALAS CONDICIONES Y/O NO DAR LOS NIVELES DE PROYECTO. INCLUYE: CORTE CON CORTADORA DE DISCO, CARGA Y RETIRO DE ESCOMBRO FUERA DE LA OBRA HASTA EL LUGAR INDICADO POR LA SUPERVISION, LA MANO DE OBRA, HERRAMIENTA Y EQUIPO NECESARIO.","ML",13.62,null,null,{"$f":"ROUND(D99*E99,2)","v":0}]
["SPV.II.29","REPARACION DE GUARNICION; INCLUYE: LIMPIEZA DE LA SUPERFICIE, RESANES CON MORTERO CEMENTO-ARENA PROP. 1:4, PASTA PARA ACABADO PULIDO, PEGACRETO, MATERIALES NECESARIOS, DESPERDICIOS, LIMPIEZA DURANTE EL PROCESO, MANO DE OBRA, HERRAMIENTA Y EQUIPO.","ML",7,null,null,0]
["SPV.II.30","CONSTRUCCION DE GUARNICION DE CONCRETO F´c=150 kg/cm2. R.N. T.M.A. 19 MM. DE 15X20X40 CM DE SECCION TRAPEZOIDAL, CORTE DE JUNTAS VERTICALES CON CORTADORA DE DISCO DE DIAMANTE A UNA PROFUNDIDAD DE 1/3 DEL PERALTE DE LA GUARNICION, LA MODULACION SERÁ INDICADA POR SUPERVISIÓN, SELLADO DE LA JUNTA CON CINTILLA DE POLIETILENO Y Y SELLADOR AUTONIVELANTE A BASE DE  POLIURETANO-ASFALTO TIPO SONOMERIC 1 Ó SIMILAR. INCLUYE: CIMBRA, DESCIMBRADO, ELABORACION, COLADO, VIBRADO Y CURADO DEL CONCRETO, TRANSPORTE A LA SIGUIENTE POSICION, MATERIALES, MANO DE OBRA Y HERRAMIENTA.","ML",34.46,null,null,0]
["SPV.II.31","CONSTRUCCION DE PISO DE 10 CM DE ESPESOR, ACABADO, PULIDO Y ESCOBILLADO FINO, SE USARA EL SISTEMA DE LOSAS INTERCALADAS CON UNA RELACION LARGO/ANCHO DE HASTA 1.50, JUNTAS FRIAS ACABADO CON VOLTEADOR.  EL CONCRETO SERA F´C= 150 KG/CM2. T.M.A. 3/4\". REV. DE 8 A 10 CM PREMEZCLADO ELABORADO EN PLANTA, REFORZADO CON MALLA ELECTROSOLDADA 6-6/10-10; INCLUYE: PREPARACION DE LA SUPERFICIE DEL TERRENO, NIVELACION, AFINE, COMPACTACION AL 95 %, CIMBRA EN FRONTERAS, SUMINISTRO, COLADO, EXTENDIDO DEL CONCRETO, TRAZO Y NIVELACION, SUMINISTRO DE TODOS LOS MATERIALES NECESARIOS, ACARREOS, DESPERDICIOS, MANO DE OBRA,  HERRAMIENTA Y EQUIPO NECESARIO, LIMPIEZA GENERAL ANTES Y UNA VEZ CONCLUIDOS LOS TRABAJOS, CARGA Y ACARREO DE LOS MATERIALES NO UTILIZABLES HASTA EL LUGAR INDICADO POR SUPERVISION.","M2",47.45,null,null,0]
["SPV.II.32","RAMPA DE CONCRETO DE 10CM DE ESPESOR, DE CONCRETO F’C=150 KG/ CM2.  REFORZADO CON MALLA ELECTROSOLDADA 6-6/10-10, ACABADO PULIDO ESCOBILLADO FINO;  INCLUYE: TRAZO Y AFINE DE TERRENO SEGUN SE REQUIERA SIN ESCALONES, MANO DE OBRA, MATERIALES, EQUIPO, HERRAMIENTA Y LIMPIEZA.","M2",21.89,null,null,0]
["SPV.II.33","SUMINISTRO Y COLOCACIÓN DE  PINTURA EN RAMPAS DE TRAFICO DE COLOR AZUL, ACORDE A LAS NORMAS DE SEÑALAMIENTO HORIZONTAL Y DE MATERIALES,  INCLUYE: LIMPIEZA DEL ÁREA A APLICAR , MATERIAL, MANO DE OBRA, EQUIPO Y HERRAMIENTA. P.U.O.T.","M2",21.89,null,null,0]
["SPV.II.34","SUMINISTRO Y APLICACIÓN DE PINTURA VINILICA AHULADA MARCA COMEX, EN COLOR BLANCO O AMARILLO (PREVIAMENTE AUTORIZADO) EN TRAMOS RECTOS Y ROJO EN CURVAS, A DOS MANOS EN GUANICIONES DE CONCRETO, INCLUYE: PREPARACION DE LA SUPERFICIE, LIMPIEZA, MATERIALES, MANO DE OBRA Y HERRAMIENTA.","ML",219,null,null,0]
[null,"II.- SEÑALAMIENTO VERTICAL Y HORIZONTAL"]
["SPV.II.35","SUMINISTRO Y APLICACION DE PINTURA DE MARCAS M-7.1 RAYAS PARA CRUCE DE PEATONES EN VÍAS PRIMARIAS, CON PINTURA TERMOPLÁSTICA COLOR AMARILLO RETRORREFLEJANTE DE 40 CM DE ANCHO,  INCLUYE LIMPIEZA POR ASPERSION PARA ELIMINAR LA PRESENCIA DE POLVO, GRASA, ACEITE Y CUALQUIER MATERIAL, MATERIALES, MANO DE OBRA, HERRAMIENTA Y EQUIPO NECESARIO.","ML",{"$f":"72*4","v":288},null,null,0]
["SPV.II.36","SUMINISTRO Y APLICACION DE PINTURA PARA LINEA DE ALTO, CON PINTURA TERMOPLÁSTICA COLOR BLANCO RETRORREFLEJANTE DE 30 CM DE ANCHO,  INCLUYE LIMPIEZA POR ASPERSION PARA ELIMINAR LA PRESENCIA DE POLVO, GRASA, ACEITE Y CUALQUIER MATERIAL, MATERIALES, MANO DE OBRA, HERRAMIENTA Y EQUIPO NECESARIO.","ML",23,null,null,0]
["SPV.II.37","SUMINISTRO Y APLICACION DE PINTURA PARA FLECHAS, LETRAS, NUMEROS DE COLOR BLANCO PREVIAMENTE AUTORIZADO POR SUPERVISION CON PINTURA TERMOPLÁSTICA PARA TRAFICO MARCA SEMEX, Y SE LE APLICARA UN REFLEJANTE CON MICROESFERA, Y SU APLICACION SERA SEGUN LO INDICADO EN EL MANUAL DE DISPOSITIVOS PARA EL CONTROL DEL TRANSITO EN CALLES Y CARRETERAS, INCLUYE: LIMPIEZA POR ASPERSION PARA ELIMINAR LA PRESENCIA DE POLVO, GRASA, ACEITE Y CUALQUIER MATERIAL, MATERIALES, MANO DE OBRA, HERRAMIENTA Y EQUIPO NECESARIO. P.U.O.T. ","PZA",8,null,null,0]
[null,"III.-INSTALACIONES ESPECIALES"]
["SPV.II.38","CONSTRUCCION DE BASE DE CONCRETO PARA ESTRUCTURA TIPO CONTEMPORANEA DE CONCRETO F’C=200 KG/CM² CON DIMENSIONES DE 0.70 M X 0.70 M X 2.00 M Y 8 ANCLAS DE ACERO DE ALTA RESISTENCIA ROSCADAS EN SU PARTE SUPERIOR, DE 1” DE DIÁMETRO POR 2.00 M DE LONGITUD.,INCLUYE: JUEGO DE 2 ANCLAS DE 1\"X200CM DE ACERO DE ALTA RESISTENCIA, 15 CM DE ROSCA, CON PUNTAS GALV. Y TORN.\n","PZA",3,null,null,0]
["SPV.II.39","CONSTRUCCION DE BASE DE CONCRETO PARA POSTES TIPO PEDESTAL DE 40x40x100cm DE Fc=250Kg/cm2,INCLUYE: JUEGO DE 2 ANCLAS DE 1\"x200cm DE ACERO DE ALTA RESISTENCIA, 15 CM DE ROSCA, CON PUNTAS GALV. Y TORN.\n","PZA",4,null,null,0]
["SPV.II.40","CONSTRUCCION DE BASE DE CONCRETO PARA EL POSTE DEL CONTROLADOR, A BASE DE CONCRETO F’C=200 KG/CM² CON DIMENSIONES DE 0.48 M X 0.65 M X 1.00 M Y 4 ANCLAS DE ACERO DE ALTA RESISTENCIA ROSCADAS EN SU PARTE SUPERIOR, DE 5/8” DE DIÁMETRO POR 0.60 M DE LONGITUD.,INCLUYE: MATERIALES, MANO DE OBRA, HERRAMIENTA Y EQUIPO NECESARIO.\n","PZA",1,null,null,0]
["SPV.II.41","SUMINISTRO Y COLOCACIÓN DE REGISTRO ELÉCTRICO  PREFABRICADO DE 40x60x60 Cm, A BASE DE CONCRETO F'c = 150 Kg/Cm2. T.M.A. 3/4\". REV. DE 8 A 10 CMS. CON UN ESPESOR DE 10 CMS. PISO DE GRAVA, APLANADO INTERIOR PULIDO FINO, MARCO Y CONTRAMARCO METALICOS GALVANIZADOS ÁNGULO 1 1/2\"x 1/4\" Y TAPA DE CONCRETO ARMADO CON VARILLA CORRUGADA ALTA RESISTENCIA DEL No.2 @ 10 CMS. AMBOS SENTIDOS SOLDADAS, F'c = 250 Kg/Cm2. T.M.A. 3/4\". REVENIMIENTO DE 8 A 10 CMS. INCLUYE: EXCAVACION EN TERRENO INVESTIGADO EN SITIO, RELLENO COMPACTADO AL 90% MINIMO, CON MATERIAL SELECCIONADO PRODUCTO DE LA EXCAVACIÓN LIBRE DE BOLEO MAYOR DE 3\", NIVELADO A N.P.T., MANIOBRAS, MATERIALES, MANO DE OBRA, HERRAMIENTA Y EQUIPO NECESARIO","PZA",3,null,null,0]
["SPV.II.42","SUMINISTRO Y COLOCACION DE ESTRUCTURA PARA SEMAFORO TIPO CONTEMPORANEA SENCILLA A BASE DETUBO DE ACERO A-53 DE 8” DIÁMETRO (8.625 NOMINAL) Y ESPESOR DE 3/16”, CON 550 CM DE ALTURA, CON PLACA BASE DE ¾” X 50 CM DE DIÁMETRO, UNIDA CON 8 CARTABONES TRIANGULARES DE FO. DE ¼” DE 7 X 15 CM Y UNA PLACA UNIÓN (ENTRE POSTE Y BRAZO) DE 3/4” X 40 X 40 CM; UN REGISTRO ELÉCTRICO EN SU BASE, FABRICADO DE SOLERA CAL. 10 DE 3.8 X 19 CM CON TAPA DE ALUMINIO Y UN MEDIO COPLE EN EL POSTE DE 1 ½” DE DIÁMETRO, CON ACCESORIOS PARA LA COLOCACIÓN DE SEMÁFOROS COMO SON: NIPLE DE 1 ½” CÉDULA 40, CODO 90° CÉDULA 40 1 ½”, CONTRATUERCA DE 1 ½”, HERRAJE PARA POSTE DE 12 X 25.5 CM, TAPÓN PARA SEMÁFORO, TUERCA CUADRADA DE 3/16” Y LÁMINA CAL. 16 DE 2.5 X 7 CM. CON 1 BRAZO: SERÁ FABRICADO CON TUBO DE ACERO A-53 DE 8” DE DIÁMETRO ROLADO (8.625 NOMINAL) Y ESPESOR DE 3/16” CON UNA LONGITUD DE BRAZO VARIABLE, DE ACUERDO A PROYECTO, PLACA UNIÓN (ENTRE POSTE Y BRAZO) DE 3/4” DE 40 X 40 CM UNIDA CON 8 CARTABONES ESPECIALES DE FO. DE 1/2” X 17 X 15 CM, ACCESORIOS PARA LA COLOCACIÓN DE SEMÁFOROS: CUATRO MEDIOS COPLES DE 1 ½” DE DIÁMETRO, CUATRO NIPLES DE 1 ½” CÉDULA 40, CUATRO CODOS A 90° CÉDULA. 40 1 ½”, CUATRO CONTRATUERCAS DE 1 ½”, DOS TORNILLOS OPRESORES DE ¼”, DOS NIPLES DE 2” CÉDULA 40 DE 10 CM DE LONGITUD Y DOS NIPLES DE 1 ½” CÉDULA 40 DE 24 CM DE LONGITUD. TODA LA ESTRUCTURA DEBERÁ SER GALVANIZADA, CON ACABADO FONDO ANTICORROSIVO Y PINTURA DEL COLOR DE ACUERDO AL PROYECTO Y REGLAMENTOS VIGENTES DE LA CIUDAD.: INCLUYE: MANIOBRAS, MATERIALES, MANO DE OBRA, HERRAMIENTA Y EQUIPO NECESARIO. ","PZA",3,null,null,0]
["SPV.II.43","SUMINISTRO Y COLOCACION DE ESTRUCTURA TIPO PEDESTAL PARA COLOCAR DOS SEMAFOROS PEATONALES A BASE DE TUBO DE ACERO A-53 DE 6” DIÁMETRO Y ESPESOR DE 3/16”, CON 320 CM DE ALTURA, CON PLACA BASE DE ¾” X 30 X 30 CM, UNIDA CON 4 CARTABONES TRIANGULARES DE FO. DE ¼” DE 7 X 15 CM; UN REGISTRO ELÉCTRICO EN SU BASE, FABRICADO DE SOLERA CAL. 10 DE 3.8 X 19 CM CON TAPA DE ALUMINIO Y UN MEDIO COPLE EN EL POSTE DE 1 ½” DE DIÁMETRO, CON ACCESORIOS PARA LA COLOCACIÓN DE SEMÁFOROS COMO SON: NIPLE DE 1 ½” CÉDULA 40, CODO 90° CÉDULA 40 1 ½”, CONTRATUERCA DE 1 ½”, HERRAJE PARA POSTE DE 12 X 25.5 CM, TAPÓN PARA SEMÁFORO, TUERCA CUADRADA DE 3/16” Y LÁMINA CAL. 16 DE 2.5 X 7 CM DEBERÁ TENER UN ACABADO CON PINTURA FONDO ANTICORROSIVA Y ACABADO FINAL EN ESMALTE COLOR DE ACUERDO AL PROYECTO Y REGLAMENTOS VIGENTES DE LA CIUDAD DONDE SERÁN INSTALADOS.: INCLUYE: MANIOBRAS, MATERIALES, MANO DE OBRA, HERRAMIENTA Y EQUIPO NECESARIO.","PZA",4,null,null,0]
["SPV.II.44","SUMINISTRO E INSTALACION DE POSTE GALVANIZADO PARA CONTROLADOR C-216; INCLUYE: MATERIALES NECESARIOS, MANIOBRAS, CONSUMIBLES, DESPERDICIOS, HERRAMIENTA, EQUIPO Y MANO DE OBRA.","PZA",1,null,null,0]
["SPV.II.45","SUMINISTRO E INSTALACION DE SEMAFORO EN EXTREMO: INCLUYE: SEMAFORO DE 4 LUCES DE 30cmS DE DIAMETRO FAB, EN POOLICARBONATO DE ALTO IMPACTO COLOR NEGRO CON DIODOS ELECROLULIMINCENTES TIPO LED´S TRANSPARENTES DE ALTA INTENSIDAD, HERRAJE TIPO TELEFONO Y TUERCAS NIPLE DE ALUMINIO DE 38mm, ","PZA",6,null,null,0]
["SPV.II.46","SUMINISTRO E INSTALACION DE SEMAFORO PEATONAL: INCLUYE: SEMÁFORO LED PEATONAL TIPO AMERICANO CON CRONÓMETRO DE 16” X 18”.FABRICADO EN POLICARBONATO DE ALTO IMPACTO, AJUSTE AUTOMÁTICO A LOS INTERVALOS PROGRAMADOS EN EL CONTROLADOR DE SEMÁFOROS, DÍGITOS DE CRONÓMETRO DE 9”, LUZ EMITIDA POR DIODOS, CRONÓMETRO DE LED EN COLOR ÁMBAR Y PEATÓN EN COLOR BLANCO, PEATÓN/MANO/CRONÓMETRO EN LA MISMA LÁMPARA., HERRAJE TIPO TELEFONO Y TUERCAS NIPLE DE ALUMINIO DE 38mm, ","PZA",8,null,null,0]
["SPV.II.47","SUMINISTRO, INSTALACION Y PROGRAMACION DE CONTROL ELECTRÓNICO C-216, GAB. C216, ALUM., 16 FASES, 16 ENTRADAS, 0 CANALES, S/AMP., GPS, MANUAL. INCLUYE :  INSTALACION Y PROGRAMACION DE CONTROL, SUMINISTRO DE MATERIALES,  HERRAMIENTA, EQUIPO, DESPERDICIOS Y MANO DE OBRA.","PZA",1,null,null,0]
[null,"IV. INSTALACIONES ELECTRICAS Y DE CONTROL"]
["SPV.II.48","SUMINISTRO E INSTALACION DE CABLE DE USO RUDO 5X14,  INCLUYE CARGO DIRECTO POR EL COSTO DE MANO DE OBRA Y MATERIALES REQUERIDOS, FLETE A OBRA, ACARREO, CORTE, COLOCACIÓN, CINTA AISLANTE, CINTA VULCANIZABLE, CONECTORES PONCHABLES BIMETALICOS (PUROS) EN CALIBRE ADECUADO, FIJACIÓN, LIMPIEZA Y RETIRO DE SOBRANTES FUERA DE OBRA, EQUIPO DE SEGURIDAD, INSTALACIONES ESPECÍFICAS, DEPRECIACIÓN Y DEMÁS CARGOS DERIVADOS DEL USO DE EQUIPO Y HERRAMIENTA, EN CUALQUIER NIVEL.","ML",700,null,null,0]
["SPV.II.49","SUMINISTRO E INSTALACION DE TUBERÍA PAD 4 \" DE DIAMETRO, PARA CANALIZACION DE SEMAFOROS. INCLUYE: , COLOCACION DE TUBERIA, CONEXION AL REGISTRO ELECTRICO,  MANO DE OBRA, HERRAMIENTA Y EQUIPO.","ML",110,null,null,0]
["SPV.II.50","SUMINISTRO Y COLOCACIÓN DE REGISTRO ELÉCTRICO  PREFABRICADO DE 40x60x60 Cm, A BASE DE CONCRETO F'c = 150 Kg/Cm2. T.M.A. 3/4\". REV. DE 8 A 10 CMS. CON UN ESPESOR DE 10 CMS. PISO DE GRAVA, APLANADO INTERIOR PULIDO FINO, MARCO Y CONTRAMARCO METALICOS GALVANIZADOS ÁNGULO 1 1/2\"x 1/4\" Y TAPA DE CONCRETO ARMADO CON VARILLA CORRUGADA ALTA RESISTENCIA DEL No.2 @ 10 CMS. AMBOS SENTIDOS SOLDADAS, F'c = 250 Kg/Cm2. T.M.A. 3/4\". REVENIMIENTO DE 8 A 10 CMS. INCLUYE: EXCAVACION EN TERRENO INVESTIGADO EN SITIO, RELLENO COMPACTADO AL 90% MINIMO, CON MATERIAL SELECCIONADO PRODUCTO DE LA EXCAVACIÓN LIBRE DE BOLEO MAYOR DE 3\", NIVELADO A N.P.T., MANIOBRAS, MATERIALES, MANO DE OBRA, HERRAMIENTA Y EQUIPO NECESARIO","PZA",9,null,null,0]
["SPV.II.51","SUMINISTRO Y COLOCACIÓN DE CABLE DE ALUMINIO TRIPLEX XLP No. (2-4+1-4 ) (SUBTERRANEO) EN CANALIZACIÓN ELÉCTRICA, INCLUYE CARGO DIRECTO POR EL COSTO DE MANO DE OBRA Y MATERIALES REQUERIDOS, FLETE A OBRA, ACARREO, CORTE, COLOCACIÓN, CINTA AISLANTE, CINTA VULCANIZABLE, CONECTORES PONCHABLES BIMETALICOS (PUROS) EN CALIBRE ADECUADO, FIJACIÓN, LIMPIEZA Y RETIRO DE SOBRANTES FUERA DE OBRA, EQUIPO DE SEGURIDAD, INSTALACIONES ESPECÍFICAS, DEPRECIACIÓN Y DEMÁS CARGOS DERIVADOS DEL USO DE EQUIPO Y HERRAMIENTA, EN CUALQUIER NIVEL.","ML",60,null,null,0]
["SPV.II.52","SUMINISTRO Y TENDIDO DE RED DE ALIMENTACIÓN DE LUMINARIAS A BASE DE TUBO PVC CONDUIT PESADO DE 1 1/4 \", INCLUYE: EXCAVACIÓN, CAMA DE ARENA, TENDIDO, RELLENO, MATERILES, MANO DE OBRA, HERRAMIENTA Y EQUIPO NECESARIO PARA SU BUEN FUNCIONAMIENTO.","ML",60,null,null,0]
["SPV.II.53","SUMINISTRO Y COLOCACIÓN DE INTERRUPTOR TERMOMAGNETICO SENCILLO DE  40 A , SEGÚN SE REQUIERA MARCA SQUARE D, ALUMBRADO 15 A, CONTACTOS 15 A, INCLUYE INSTALACIÓN, CONEXIÓN AJUSTES Y TODO LO NECESARIO PARA SU CORRECTA INSTALACIÓN","PZA",1,null,null,0]
["SPV.II.54","SUMINISTRO  E INSTALACION DE ALIMENTACIÓN ELECTRICA DE PARA CENTRO DE CARGA DE 2 CIRCUITOS,  A BASE DE TUBERIA FLEXIBLE TIPO LIQUID TIGHT DE 1/2  \", DOS CONDUCTORES DE COBRE CALIBRE 10 AWG PARA FASES,1 CONDUCTOR DE COBRE CALIBRE 14 AWG PARA TIERRA FISICA. INCLUYE:  CONEXION  DE CABLEADO EN  OPRESORES DE BRAKE PRINCIPAL DE  MURETE,  MATERILES, MANO DE OBRA, HERRAMIENTA Y EQUIPO NECESARIO PARA SU BUEN FUNCIONAMIENTO.","LOTE",1,null,null,0]
["SPV.II.55","DEMOLICIÓN Y REPOSICION DE CONCRETO O CARPETA ASFALTICA EN SANJA DE 30 CM DE ANCHO; INCLUYE CORTE CON REHILETE, DEMOLICIÓN, RETIRO DE ESCOMBRO, COLADO Y RESANADO CON CONCRETO F'C=250KG/CM2 O REPOSICION DE CARPETA ASFALTICA PARA ALOJAMIENTO DE INSTALACIONES ELECTRICAS PARA SEMAFOROS. MATERIALES NECESARIOS, DESPERDICIOS, HERRAMIENTA, EQUIPO Y MANO DE OBRA.","ML",90,null,null,0]
["SPV.II.56","SUMINISTRO E INSTALACION DE CENTRO DE CARGA MONOFASICO DE 2 CIRCUITOS ZAPATAS DE 60 A,  MARCA SQUARE D, INCLUYE:  EMPOTRE DEL MISMO, ADEMAS DE CONEXIÓN  DE ALIMENTACION.","PZA",1,null,null,0]
["II.3","LIBRAMIENTO JUAN DE DIOS ANGULO Y AV. DE LOS DEPORTISTAS. (9) "]
[null,"I. GUARNICIONES, BANQUETAS Y EQUIPAMIENTO"]
["SPV.II.57","DEMOLICION DE GUARNICIONES DE CONCRETO EXISTENTES POR ENCONTRARSE EN MALAS CONDICIONES Y/O NO DAR LOS NIVELES DE PROYECTO. INCLUYE: CORTE CON CORTADORA DE DISCO, CARGA Y RETIRO DE ESCOMBRO FUERA DE LA OBRA HASTA EL LUGAR INDICADO POR LA SUPERVISION, LA MANO DE OBRA, HERRAMIENTA Y EQUIPO NECESARIO.","ML",16.54,null,null,{"$f":"ROUND(D133*E133,2)","v":0}]
["SPV.II.58","REPARACION DE GUARNICION; INCLUYE: LIMPIEZA DE LA SUPERFICIE, RESANES CON MORTERO CEMENTO-ARENA PROP. 1:4, PASTA PARA ACABADO PULIDO, PEGACRETO, MATERIALES NECESARIOS, DESPERDICIOS, LIMPIEZA DURANTE EL PROCESO, MANO DE OBRA, HERRAMIENTA Y EQUIPO.","ML",18,null,null,0]
["SPV.II.59","CONSTRUCCION DE GUARNICION DE CONCRETO F´c=150 kg/cm2. R.N. T.M.A. 19 MM. DE 15X20X40 CM DE SECCION TRAPEZOIDAL, CORTE DE JUNTAS VERTICALES CON CORTADORA DE DISCO DE DIAMANTE A UNA PROFUNDIDAD DE 1/3 DEL PERALTE DE LA GUARNICION, LA MODULACION SERÁ INDICADA POR SUPERVISIÓN, SELLADO DE LA JUNTA CON CINTILLA DE POLIETILENO Y Y SELLADOR AUTONIVELANTE A BASE DE  POLIURETANO-ASFALTO TIPO SONOMERIC 1 Ó SIMILAR. INCLUYE: CIMBRA, DESCIMBRADO, ELABORACION, COLADO, VIBRADO Y CURADO DEL CONCRETO, TRANSPORTE A LA SIGUIENTE POSICION, MATERIALES, MANO DE OBRA Y HERRAMIENTA.","ML",71.709999999999994,null,null,0]
["SPV.II.60","CONSTRUCCION DE PISO DE 10 CM DE ESPESOR, ACABADO, PULIDO Y ESCOBILLADO FINO, SE USARA EL SISTEMA DE LOSAS INTERCALADAS CON UNA RELACION LARGO/ANCHO DE HASTA 1.50, JUNTAS FRIAS ACABADO CON VOLTEADOR.  EL CONCRETO SERA F´C= 150 KG/CM2. T.M.A. 3/4\". REV. DE 8 A 10 CM PREMEZCLADO ELABORADO EN PLANTA, REFORZADO CON MALLA ELECTROSOLDADA 6-6/10-10; INCLUYE: PREPARACION DE LA SUPERFICIE DEL TERRENO, NIVELACION, AFINE, COMPACTACION AL 95 %, CIMBRA EN FRONTERAS, SUMINISTRO, COLADO, EXTENDIDO DEL CONCRETO, TRAZO Y NIVELACION, SUMINISTRO DE TODOS LOS MATERIALES NECESARIOS, ACARREOS, DESPERDICIOS, MANO DE OBRA,  HERRAMIENTA Y EQUIPO NECESARIO, LIMPIEZA GENERAL ANTES Y UNA VEZ CONCLUIDOS LOS TRABAJOS, CARGA Y ACARREO DE LOS MATERIALES NO UTILIZABLES HASTA EL LUGAR INDICADO POR SUPERVISION.","M2",30.65,null,null,0]
["SPV.II.61","CONSTRUCCION DE BANQUETAS DE 8 CM DE ESPESOR, ACABADO, PULIDO Y ESCOBILLADO FINO, SE USARA EL SISTEMA DE LOSAS INTERCALADAS CON UNA RELACION LARGO/ANCHO DE HASTA 1.50, JUNTAS FRIAS ACABADO CON VOLTEADOR.  EL CONCRETO SERA F´C= 150 KG/CM2. T.M.A. 3/4\". REV. DE 8 A 10 CM PREMEZCLADO ELABORADO EN PLANTA, REFORZADO CON MALLA ELECTROSOLDADA 6-6/10-10; INCLUYE: PREPARACION DE LA SUPERFICIE DEL TERRENO, NIVELACION, AFINE, COMPACTACION AL 95 %, CIMBRA EN FRONTERAS, SUMINISTRO, COLADO, EXTENDIDO DEL CONCRETO, TRAZO Y NIVELACION, SUMINISTRO DE TODOS LOS MATERIALES NECESARIOS, ACARREOS, DESPERDICIOS, MANO DE OBRA,  HERRAMIENTA Y EQUIPO NECESARIO, LIMPIEZA GENERAL ANTES Y UNA VEZ CONCLUIDOS LOS TRABAJOS, CARGA Y ACARREO DE LOS MATERIALES NO UTILIZABLES HASTA EL LUGAR INDICADO POR SUPERVISION.","M2",51.54,null,null,0]
["SPV.II.62","RAMPA DE CONCRETO DE 10CM DE ESPESOR, DE CONCRETO F’C=150 KG/ CM2.  REFORZADO CON MALLA ELECTROSOLDADA 6-6/10-10, ACABADO PULIDO ESCOBILLADO FINO;  INCLUYE: TRAZO Y AFINE DE TERRENO SEGUN SE REQUIERA SIN ESCALONES, MANO DE OBRA, MATERIALES, EQUIPO, HERRAMIENTA Y LIMPIEZA.","M2",21.63,null,null,0]
["SPV.II.63","SUMINISTRO Y COLOCACIÓN DE  PINTURA EN RAMPAS DE TRAFICO DE COLOR AZUL, ACORDE A LAS NORMAS DE SEÑALAMIENTO HORIZONTAL Y DE MATERIALES,  INCLUYE: LIMPIEZA DEL ÁREA A APLICAR , MATERIAL, MANO DE OBRA, EQUIPO Y HERRAMIENTA. P.U.O.T.","M2",21.63,null,null,0]
["SPV.II.64","SUMINISTRO Y APLICACIÓN DE PINTURA VINILICA AHULADA MARCA COMEX, EN COLOR BLANCO O AMARILLO (PREVIAMENTE AUTORIZADO) EN TRAMOS RECTOS Y ROJO EN CURVAS, A DOS MANOS EN GUANICIONES DE CONCRETO, INCLUYE: PREPARACION DE LA SUPERFICIE, LIMPIEZA, MATERIALES, MANO DE OBRA Y HERRAMIENTA.","ML",87,null,null,0]
[null,"II.- SEÑALAMIENTO VERTICAL Y HORIZONTAL"]
["SPV.II.65","SUMINISTRO Y APLICACION DE PINTURA DE MARCAS M-7.1 RAYAS PARA CRUCE DE PEATONES EN VÍAS PRIMARIAS, CON PINTURA TERMOPLÁSTICA COLOR AMARILLO RETRORREFLEJANTE DE 40 CM DE ANCHO,  INCLUYE LIMPIEZA POR ASPERSION PARA ELIMINAR LA PRESENCIA DE POLVO, GRASA, ACEITE Y CUALQUIER MATERIAL, MATERIALES, MANO DE OBRA, HERRAMIENTA Y EQUIPO NECESARIO.","ML",{"$f":"76*4","v":304},null,null,{"$f":"ROUND(D142*E142,2)","v":0}]
["SPV.II.66","SUMINISTRO Y APLICACION DE PINTURA PARA LINEA DE ALTO DE COLOR BLANCO PREVIAMENTE AUTORIZADO POR SUPERVISION CON PINTURA TERMOPLÁSTICA PARA TRAFICO MARCA SEMEX, Y SE LE APLICARA UN REFLEJANTE CON MICROESFERA, Y SU APLICACION SERA SEGUN LO INDICADO EN EL MANUAL DE DISPOSITIVOS PARA EL CONTROL DEL TRANSITO EN CALLES Y CARRETERAS, INCLUYE: LIMPIEZA POR ASPERSION PARA ELIMINAR LA PRESENCIA DE POLVO, GRASA, ACEITE Y CUALQUIER MATERIAL, MATERIALES, MANO DE OBRA, HERRAMIENTA Y EQUIPO NECESARIO. P.U.O.T. ","ML",25,null,null,0]
["SPV.II.67","SUMINISTRO Y APLICACION DE PINTURA PARA FLECHAS, LETRAS, NUMEROS DE COLOR BLANCO PREVIAMENTE AUTORIZADO POR SUPERVISION CON PINTURA TERMOPLÁSTICA PARA TRAFICO MARCA SEMEX, Y SE LE APLICARA UN REFLEJANTE CON MICROESFERA, Y SU APLICACION SERA SEGUN LO INDICADO EN EL MANUAL DE DISPOSITIVOS PARA EL CONTROL DEL TRANSITO EN CALLES Y CARRETERAS, INCLUYE: LIMPIEZA POR ASPERSION PARA ELIMINAR LA PRESENCIA DE POLVO, GRASA, ACEITE Y CUALQUIER MATERIAL, MATERIALES, MANO DE OBRA, HERRAMIENTA Y EQUIPO NECESARIO. P.U.O.T. ","PZA",6,null,null,0]
["SPV.II.68","SUMINISTRO Y APLICACION DE PINTURA PARA FLECHA CURVA, DE COLOR BLANCO PREVIAMENTE AUTORIZADO POR SUPERVISION CON PINTURA TERMOPLÁSTICA PARA TRAFICO MARCA SEMEX, Y SE LE APLICARA UN REFLEJANTE CON MICROESFERA, Y SU APLICACION SERA SEGUN LO INDICADO EN EL MANUAL DE DISPOSITIVOS PARA EL CONTROL DEL TRANSITO EN CALLES Y CARRETERAS, INCLUYE: LIMPIEZA POR ASPERSION PARA ELIMINAR LA PRESENCIA DE POLVO, GRASA, ACEITE Y CUALQUIER MATERIAL, MATERIALES, MANO DE OBRA, HERRAMIENTA Y EQUIPO NECESARIO. P.U.O.T. ","PZA",2,null,null,0]
["SPV.II.69","SUMINISTRO Y APLICACION DE PINTURA PARA FLECHAS DOBLE, DE COLOR BLANCO PREVIAMENTE AUTORIZADO POR SUPERVISION CON PINTURA TERMOPLÁSTICA PARA TRAFICO MARCA SEMEX, Y SE LE APLICARA UN REFLEJANTE CON MICROESFERA, Y SU APLICACION SERA SEGUN LO INDICADO EN EL MANUAL DE DISPOSITIVOS PARA EL CONTROL DEL TRANSITO EN CALLES Y CARRETERAS, INCLUYE: LIMPIEZA POR ASPERSION PARA ELIMINAR LA PRESENCIA DE POLVO, GRASA, ACEITE Y CUALQUIER MATERIAL, MATERIALES, MANO DE OBRA, HERRAMIENTA Y EQUIPO NECESARIO. P.U.O.T. ","PZA",2,null,null,0]
[null,"III.-INSTALACIONES ESPECIALES"]
["SPV.II.70","CONSTRUCCION DE BASE DE CONCRETO PARA ESTRUCTURA TIPO CONTEMPORANEA DE CONCRETO F’C=200 KG/CM² CON DIMENSIONES DE 0.70 M X 0.70 M X 2.00 M Y 8 ANCLAS DE ACERO DE ALTA RESISTENCIA ROSCADAS EN SU PARTE SUPERIOR, DE 1” DE DIÁMETRO POR 2.00 M DE LONGITUD.,INCLUYE: JUEGO DE 2 ANCLAS DE 1\"X200CM DE ACERO DE ALTA RESISTENCIA, 15 CM DE ROSCA, CON PUNTAS GALV. Y TORN.\n","PZA",3,null,null,{"$f":"ROUND(D148*E148,2)","v":0}]
["SPV.II.71","CONSTRUCCION DE BASE DE CONCRETO PARA POSTES TIPO PEDESTAL DE 40x40x100cm DE Fc=250Kg/cm2,INCLUYE: JUEGO DE 2 ANCLAS DE 1\"x200cm DE ACERO DE ALTA RESISTENCIA, 15 CM DE ROSCA, CON PUNTAS GALV. Y TORN.\n","PZA",4,null,null,0]
["SPV.II.72","CONSTRUCCION DE BASE DE CONCRETO PARA EL POSTE DEL CONTROLADOR, A BASE DE CONCRETO F’C=200 KG/CM² CON DIMENSIONES DE 0.48 M X 0.65 M X 1.00 M Y 4 ANCLAS DE ACERO DE ALTA RESISTENCIA ROSCADAS EN SU PARTE SUPERIOR, DE 5/8” DE DIÁMETRO POR 0.60 M DE LONGITUD.,INCLUYE: MATERIALES, MANO DE OBRA, HERRAMIENTA Y EQUIPO NECESARIO.\n","PZA",1,null,null,0]
["SPV.II.73","SUMINISTRO Y COLOCACIÓN DE REGISTRO ELÉCTRICO  PREFABRICADO DE 40x60x60 Cm, A BASE DE CONCRETO F'c = 150 Kg/Cm2. T.M.A. 3/4\". REV. DE 8 A 10 CMS. CON UN ESPESOR DE 10 CMS. PISO DE GRAVA, APLANADO INTERIOR PULIDO FINO, MARCO Y CONTRAMARCO METALICOS GALVANIZADOS ÁNGULO 1 1/2\"x 1/4\" Y TAPA DE CONCRETO ARMADO CON VARILLA CORRUGADA ALTA RESISTENCIA DEL No.2 @ 10 CMS. AMBOS SENTIDOS SOLDADAS, F'c = 250 Kg/Cm2. T.M.A. 3/4\". REVENIMIENTO DE 8 A 10 CMS. INCLUYE: EXCAVACION EN TERRENO INVESTIGADO EN SITIO, RELLENO COMPACTADO AL 90% MINIMO, CON MATERIAL SELECCIONADO PRODUCTO DE LA EXCAVACIÓN LIBRE DE BOLEO MAYOR DE 3\", NIVELADO A N.P.T., MANIOBRAS, MATERIALES, MANO DE OBRA, HERRAMIENTA Y EQUIPO NECESARIO","PZA",3,null,null,0]
["SPV.II.74","SUMINISTRO Y COLOCACION DE ESTRUCTURA PARA SEMAFORO TIPO CONTEMPORANEA SENCILLA A BASE DETUBO DE ACERO A-53 DE 8” DIÁMETRO (8.625 NOMINAL) Y ESPESOR DE 3/16”, CON 550 CM DE ALTURA, CON PLACA BASE DE ¾” X 50 CM DE DIÁMETRO, UNIDA CON 8 CARTABONES TRIANGULARES DE FO. DE ¼” DE 7 X 15 CM Y UNA PLACA UNIÓN (ENTRE POSTE Y BRAZO) DE 3/4” X 40 X 40 CM; UN REGISTRO ELÉCTRICO EN SU BASE, FABRICADO DE SOLERA CAL. 10 DE 3.8 X 19 CM CON TAPA DE ALUMINIO Y UN MEDIO COPLE EN EL POSTE DE 1 ½” DE DIÁMETRO, CON ACCESORIOS PARA LA COLOCACIÓN DE SEMÁFOROS COMO SON: NIPLE DE 1 ½” CÉDULA 40, CODO 90° CÉDULA 40 1 ½”, CONTRATUERCA DE 1 ½”, HERRAJE PARA POSTE DE 12 X 25.5 CM, TAPÓN PARA SEMÁFORO, TUERCA CUADRADA DE 3/16” Y LÁMINA CAL. 16 DE 2.5 X 7 CM. CON 1 BRAZO: SERÁ FABRICADO CON TUBO DE ACERO A-53 DE 8” DE DIÁMETRO ROLADO (8.625 NOMINAL) Y ESPESOR DE 3/16” CON UNA LONGITUD DE BRAZO VARIABLE, DE ACUERDO A PROYECTO, PLACA UNIÓN (ENTRE POSTE Y BRAZO) DE 3/4” DE 40 X 40 CM UNIDA CON 8 CARTABONES ESPECIALES DE FO. DE 1/2” X 17 X 15 CM, ACCESORIOS PARA LA COLOCACIÓN DE SEMÁFOROS: CUATRO MEDIOS COPLES DE 1 ½” DE DIÁMETRO, CUATRO NIPLES DE 1 ½” CÉDULA 40, CUATRO CODOS A 90° CÉDULA. 40 1 ½”, CUATRO CONTRATUERCAS DE 1 ½”, DOS TORNILLOS OPRESORES DE ¼”, DOS NIPLES DE 2” CÉDULA 40 DE 10 CM DE LONGITUD Y DOS NIPLES DE 1 ½” CÉDULA 40 DE 24 CM DE LONGITUD. TODA LA ESTRUCTURA DEBERÁ SER GALVANIZADA, CON ACABADO FONDO ANTICORROSIVO Y PINTURA DEL COLOR DE ACUERDO AL PROYECTO Y REGLAMENTOS VIGENTES DE LA CIUDAD.: INCLUYE: MANIOBRAS, MATERIALES, MANO DE OBRA, HERRAMIENTA Y EQUIPO NECESARIO. ","PZA",3,null,null,0]
["SPV.II.75","SUMINISTRO Y COLOCACION DE ESTRUCTURA TIPO PEDESTAL PARA COLOCAR DOS SEMAFOROS PEATONALES A BASE DE TUBO DE ACERO A-53 DE 6” DIÁMETRO Y ESPESOR DE 3/16”, CON 320 CM DE ALTURA, CON PLACA BASE DE ¾” X 30 X 30 CM, UNIDA CON 4 CARTABONES TRIANGULARES DE FO. DE ¼” DE 7 X 15 CM; UN REGISTRO ELÉCTRICO EN SU BASE, FABRICADO DE SOLERA CAL. 10 DE 3.8 X 19 CM CON TAPA DE ALUMINIO Y UN MEDIO COPLE EN EL POSTE DE 1 ½” DE DIÁMETRO, CON ACCESORIOS PARA LA COLOCACIÓN DE SEMÁFOROS COMO SON: NIPLE DE 1 ½” CÉDULA 40, CODO 90° CÉDULA 40 1 ½”, CONTRATUERCA DE 1 ½”, HERRAJE PARA POSTE DE 12 X 25.5 CM, TAPÓN PARA SEMÁFORO, TUERCA CUADRADA DE 3/16” Y LÁMINA CAL. 16 DE 2.5 X 7 CM DEBERÁ TENER UN ACABADO CON PINTURA FONDO ANTICORROSIVA Y ACABADO FINAL EN ESMALTE COLOR DE ACUERDO AL PROYECTO Y REGLAMENTOS VIGENTES DE LA CIUDAD DONDE SERÁN INSTALADOS.: INCLUYE: MANIOBRAS, MATERIALES, MANO DE OBRA, HERRAMIENTA Y EQUIPO NECESARIO.","PZA",4,null,null,0]
["SPV.II.76","SUMINISTRO E INSTALACION DE POSTE GALVANIZADO PARA CONTROLADOR C-216; INCLUYE: MATERIALES NECESARIOS, MANIOBRAS, CONSUMIBLES, DESPERDICIOS, HERRAMIENTA, EQUIPO Y MANO DE OBRA.","PZA",1,null,null,0]
["SPV.II.77","SUMINISTRO E INSTALACION DE SEMAFORO EN EXTREMO: INCLUYE: SEMAFORO DE 4 LUCES DE 30cmS DE DIAMETRO FAB, EN POOLICARBONATO DE ALTO IMPACTO COLOR NEGRO CON DIODOS ELECROLULIMINCENTES TIPO LED´S TRANSPARENTES DE ALTA INTENSIDAD, HERRAJE TIPO TELEFONO Y TUERCAS NIPLE DE ALUMINIO DE 38mm, ","PZA",6,null,null,0]
["SPV.II.78","SUMINISTRO E INSTALACION DE SEMAFORO PEATONAL: INCLUYE: SEMÁFORO LED PEATONAL TIPO AMERICANO CON CRONÓMETRO DE 16” X 18”.FABRICADO EN POLICARBONATO DE ALTO IMPACTO, AJUSTE AUTOMÁTICO A LOS INTERVALOS PROGRAMADOS EN EL CONTROLADOR DE SEMÁFOROS, DÍGITOS DE CRONÓMETRO DE 9”, LUZ EMITIDA POR DIODOS, CRONÓMETRO DE LED EN COLOR ÁMBAR Y PEATÓN EN COLOR BLANCO, PEATÓN/MANO/CRONÓMETRO EN LA MISMA LÁMPARA., HERRAJE TIPO TELEFONO Y TUERCAS NIPLE DE ALUMINIO DE 38mm, ","PZA",8,null,null,0]
["SPV.II.79","SUMINISTRO, INSTALACION Y PROGRAMACION DE CONTROL ELECTRÓNICO C-216, GAB. C216, ALUM., 16 FASES, 16 ENTRADAS, 0 CANALES, S/AMP., GPS, MANUAL. INCLUYE :  INSTALACION Y PROGRAMACION DE CONTROL, SUMINISTRO DE MATERIALES,  HERRAMIENTA, EQUIPO, DESPERDICIOS Y MANO DE OBRA.","PZA",1,null,null,0]
[null,"IV. INSTALACIONES ELECTRICAS Y DE CONTROL"]
["SPV.II.80","SUMINISTRO E INSTALACION DE CABLE DE USO RUDO 5X14,  INCLUYE CARGO DIRECTO POR EL COSTO DE MANO DE OBRA Y MATERIALES REQUERIDOS, FLETE A OBRA, ACARREO, CORTE, COLOCACIÓN, CINTA AISLANTE, CINTA VULCANIZABLE, CONECTORES PONCHABLES BIMETALICOS (PUROS) EN CALIBRE ADECUADO, FIJACIÓN, LIMPIEZA Y RETIRO DE SOBRANTES FUERA DE OBRA, EQUIPO DE SEGURIDAD, INSTALACIONES ESPECÍFICAS, DEPRECIACIÓN Y DEMÁS CARGOS DERIVADOS DEL USO DE EQUIPO Y HERRAMIENTA, EN CUALQUIER NIVEL.","ML",700,null,null,{"$f":"ROUND(D159*E159,2)","v":0}]
["SPV.II.81","SUMINISTRO E INSTALACION DE TUBERÍA PAD 4 \" DE DIAMETRO, PARA CANALIZACION DE SEMAFOROS. INCLUYE: , COLOCACION DE TUBERIA, CONEXION AL REGISTRO ELECTRICO,  MANO DE OBRA, HERRAMIENTA Y EQUIPO.","ML",83,null,null,0]
["SPV.II.82","SUMINISTRO Y COLOCACIÓN DE REGISTRO ELÉCTRICO  PREFABRICADO DE 40x60x60 Cm, A BASE DE CONCRETO F'c = 150 Kg/Cm2. T.M.A. 3/4\". REV. DE 8 A 10 CMS. CON UN ESPESOR DE 10 CMS. PISO DE GRAVA, APLANADO INTERIOR PULIDO FINO, MARCO Y CONTRAMARCO METALICOS GALVANIZADOS ÁNGULO 1 1/2\"x 1/4\" Y TAPA DE CONCRETO ARMADO CON VARILLA CORRUGADA ALTA RESISTENCIA DEL No.2 @ 10 CMS. AMBOS SENTIDOS SOLDADAS, F'c = 250 Kg/Cm2. T.M.A. 3/4\". REVENIMIENTO DE 8 A 10 CMS. INCLUYE: EXCAVACION EN TERRENO INVESTIGADO EN SITIO, RELLENO COMPACTADO AL 90% MINIMO, CON MATERIAL SELECCIONADO PRODUCTO DE LA EXCAVACIÓN LIBRE DE BOLEO MAYOR DE 3\", NIVELADO A N.P.T., MANIOBRAS, MATERIALES, MANO DE OBRA, HERRAMIENTA Y EQUIPO NECESARIO","PZA",9,null,null,0]
["SPV.II.83","SUMINISTRO Y COLOCACIÓN DE CABLE DE ALUMINIO TRIPLEX XLP No. (2-2+1-2 ) (SUBTERRANEO) EN CANALIZACIÓN ELÉCTRICA, INCLUYE CARGO DIRECTO POR EL COSTO DE MANO DE OBRA Y MATERIALES REQUERIDOS, FLETE A OBRA, ACARREO, CORTE, COLOCACIÓN, CINTA AISLANTE, CINTA VULCANIZABLE, CONECTORES PONCHABLES BIMETALICOS (PUROS) EN CALIBRE ADECUADO, FIJACIÓN, LIMPIEZA Y RETIRO DE SOBRANTES FUERA DE OBRA, EQUIPO DE SEGURIDAD, INSTALACIONES ESPECÍFICAS, DEPRECIACIÓN Y DEMÁS CARGOS DERIVADOS DEL USO DE EQUIPO Y HERRAMIENTA, EN CUALQUIER NIVEL.","ML",390,null,null,0]
["SPV.II.84","SUMINISTRO Y TENDIDO DE RED DE ALIMENTACIÓN DE LUMINARIAS A BASE DE TUBO PVC CONDUIT PESADO DE 1 1/4 \", INCLUYE: EXCAVACIÓN, CAMA DE ARENA, TENDIDO, RELLENO, MATERILES, MANO DE OBRA, HERRAMIENTA Y EQUIPO NECESARIO PARA SU BUEN FUNCIONAMIENTO.","ML",390,null,null,0]
["SPV.II.85","SUMINISTRO Y COLOCACIÓN DE INTERRUPTOR TERMOMAGNETICO SENCILLO DE  60 A , SEGÚN SE REQUIERA MARCA SQUARE D, ALUMBRADO 15 A, CONTACTOS 15 A, INCLUYE INSTALACIÓN, CONEXIÓN AJUSTES Y TODO LO NECESARIO PARA SU CORRECTA INSTALACIÓN","PZA",1,null,null,0]
["SPV.II.86","SUMINISTRO  E INSTALACION DE ALIMENTACIÓN ELECTRICA DE PARA CENTRO DE CARGA DE 4 CIRCUITOS,  A BASE DE TUBERIA FLEXIBLE TIPO LIQUID TIGHT DE 1/2  \", DOS CONDUCTORES DE COBRE CALIBRE 10 AWG PARA FASES,1 CONDUCTOR DE COBRE CALIBRE 14 AWG PARA TIERRA FISICA. INCLUYE:  CONEXION  DE CABLEADO EN  OPRESORES DE BRAKE PRINCIPAL DE  MURETE,  MATERILES, MANO DE OBRA, HERRAMIENTA Y EQUIPO NECESARIO PARA SU BUEN FUNCIONAMIENTO.","LOTE",1,null,null,0]
["SPV.II.87","SUMINISTRO E INSTALACION DE CENTRO DE CARGA MONOFASICO DE 4 CIRCUITOS ZAPATAS DE 100 A,  MARCA SQUARE D, INCLUYE:  EMPOTRE DEL MISMO, ADEMAS DE CONEXIÓN  DE ALIMENTACION.","PZA",1,null,null,0]
["SPV.II.88","DEMOLICIÓN Y REPOSICION DE CONCRETO O CARPETA ASFALTICA EN SANJA DE 15 CM DE ANCHO; INCLUYE CORTE CON REHILETE, DEMOLICIÓN, RETIRO DE ESCOMBRO, COLADO Y RESANADO CON CONCRETO F'C=150KG/CM2 O REPOSICION DE CARPETA ASFALTICA PARA INSTALACIONES ELECTRICAS PARA SEMAFOROS. MATERIALES NECESARIOS, DESPERDICIOS, HERRAMIENTA, EQUIPO Y MANO DE OBRA.","ML",12,null,null,0]
["SPV.II.89","DEMOLICIÓN Y REPOSICION DE CONCRETO O CARPETA ASFALTICA EN SANJA DE 30 CM DE ANCHO; INCLUYE CORTE CON REHILETE, DEMOLICIÓN, RETIRO DE ESCOMBRO, COLADO Y RESANADO CON CONCRETO F'C=150KG/CM2 O REPOSICION DE CARPETA ASFALTICA PARA INSTALACIONES ELECTRICAS PARA SEMAFOROS. MATERIALES NECESARIOS, DESPERDICIOS, HERRAMIENTA, EQUIPO Y MANO DE OBRA.","ML",67,null,null,0]
["II.4","LIBRAMIENTO DANIEL ROLDAN Y CALLE OPALINA. (10) "]
[null,"I. GUARNICIONES, BANQUETAS Y EQUIPAMIENTO"]
["SPV.II.90","DEMOLICION DE GUARNICIONES DE CONCRETO EXISTENTES POR ENCONTRARSE EN MALAS CONDICIONES Y/O NO DAR LOS NIVELES DE PROYECTO. INCLUYE: CORTE CON CORTADORA DE DISCO, CARGA Y RETIRO DE ESCOMBRO FUERA DE LA OBRA HASTA EL LUGAR INDICADO POR LA SUPERVISION, LA MANO DE OBRA, HERRAMIENTA Y EQUIPO NECESARIO.","ML",5.8,null,null,{"$f":"ROUND(D171*E171,2)","v":0}]
["SPV.II.91","REPARACION DE GUARNICION; INCLUYE: LIMPIEZA DE LA SUPERFICIE, RESANES CON MORTERO CEMENTO-ARENA PROP. 1:4, PASTA PARA ACABADO PULIDO, PEGACRETO, MATERIALES NECESARIOS, DESPERDICIOS, LIMPIEZA DURANTE EL PROCESO, MANO DE OBRA, HERRAMIENTA Y EQUIPO.","ML",6,null,null,0]
["SPV.II.92","CONSTRUCCION DE GUARNICION DE CONCRETO F´c=150 kg/cm2. R.N. T.M.A. 19 MM. DE 15X20X40 CM DE SECCION TRAPEZOIDAL, CORTE DE JUNTAS VERTICALES CON CORTADORA DE DISCO DE DIAMANTE A UNA PROFUNDIDAD DE 1/3 DEL PERALTE DE LA GUARNICION, LA MODULACION SERÁ INDICADA POR SUPERVISIÓN, SELLADO DE LA JUNTA CON CINTILLA DE POLIETILENO Y Y SELLADOR AUTONIVELANTE A BASE DE  POLIURETANO-ASFALTO TIPO SONOMERIC 1 Ó SIMILAR. INCLUYE: CIMBRA, DESCIMBRADO, ELABORACION, COLADO, VIBRADO Y CURADO DEL CONCRETO, TRANSPORTE A LA SIGUIENTE POSICION, MATERIALES, MANO DE OBRA Y HERRAMIENTA.","ML",10.24,null,null,0]
["SPV.II.93","CONSTRUCCION DE PISO DE 10 CM DE ESPESOR, ACABADO, PULIDO Y ESCOBILLADO FINO, SE USARA EL SISTEMA DE LOSAS INTERCALADAS CON UNA RELACION LARGO/ANCHO DE HASTA 1.50, JUNTAS FRIAS ACABADO CON VOLTEADOR.  EL CONCRETO SERA F´C= 150 KG/CM2. T.M.A. 3/4\". REV. DE 8 A 10 CM PREMEZCLADO ELABORADO EN PLANTA, REFORZADO CON MALLA ELECTROSOLDADA 6-6/10-10; INCLUYE: PREPARACION DE LA SUPERFICIE DEL TERRENO, NIVELACION, AFINE, COMPACTACION AL 95 %, CIMBRA EN FRONTERAS, SUMINISTRO, COLADO, EXTENDIDO DEL CONCRETO, TRAZO Y NIVELACION, SUMINISTRO DE TODOS LOS MATERIALES NECESARIOS, ACARREOS, DESPERDICIOS, MANO DE OBRA,  HERRAMIENTA Y EQUIPO NECESARIO, LIMPIEZA GENERAL ANTES Y UNA VEZ CONCLUIDOS LOS TRABAJOS, CARGA Y ACARREO DE LOS MATERIALES NO UTILIZABLES HASTA EL LUGAR INDICADO POR SUPERVISION.","M2",4.3499999999999996,null,null,0]
["SPV.II.94","SUMINISTRO Y APLICACIÓN DE PINTURA VINILICA AHULADA MARCA COMEX, EN COLOR BLANCO O AMARILLO (PREVIAMENTE AUTORIZADO) EN TRAMOS RECTOS Y ROJO EN CURVAS, A DOS MANOS EN GUANICIONES DE CONCRETO, INCLUYE: PREPARACION DE LA SUPERFICIE, LIMPIEZA, MATERIALES, MANO DE OBRA Y HERRAMIENTA.","ML",149,null,null,0]
[null,"II.- SEÑALAMIENTO VERTICAL Y HORIZONTAL"]
["SPV.II.95","SUMINISTRO Y APLICACION DE PINTURA DE MARCAS M-7.1 RAYAS PARA CRUCE DE PEATONES EN VÍAS PRIMARIAS, CON PINTURA TERMOPLÁSTICA COLOR AMARILLO RETRORREFLEJANTE DE 40 CM DE ANCHO,  INCLUYE LIMPIEZA POR ASPERSION PARA ELIMINAR LA PRESENCIA DE POLVO, GRASA, ACEITE Y CUALQUIER MATERIAL, MATERIALES, MANO DE OBRA, HERRAMIENTA Y EQUIPO NECESARIO.","ML",{"$f":"48*4","v":192},null,null,{"$f":"ROUND(D177*E177,2)","v":0}]
["SPV.II.96","SUMINISTRO Y APLICACION DE PINTURA PARA LINEA DE ALTO DE COLOR BLANCO PREVIAMENTE AUTORIZADO POR SUPERVISION CON PINTURA TERMOPLÁSTICA PARA TRAFICO MARCA SEMEX, Y SE LE APLICARA UN REFLEJANTE CON MICROESFERA, Y SU APLICACION SERA SEGUN LO INDICADO EN EL MANUAL DE DISPOSITIVOS PARA EL CONTROL DEL TRANSITO EN CALLES Y CARRETERAS, INCLUYE: LIMPIEZA POR ASPERSION PARA ELIMINAR LA PRESENCIA DE POLVO, GRASA, ACEITE Y CUALQUIER MATERIAL, MATERIALES, MANO DE OBRA, HERRAMIENTA Y EQUIPO NECESARIO. P.U.O.T. ","ML",20,null,null,0]
["SPV.II.97","SUMINISTRO Y APLICACION DE PINTURA PARA FLECHAS, LETRAS, NUMEROS DE COLOR BLANCO PREVIAMENTE AUTORIZADO POR SUPERVISION CON PINTURA TERMOPLÁSTICA PARA TRAFICO MARCA SEMEX, Y SE LE APLICARA UN REFLEJANTE CON MICROESFERA, Y SU APLICACION SERA SEGUN LO INDICADO EN EL MANUAL DE DISPOSITIVOS PARA EL CONTROL DEL TRANSITO EN CALLES Y CARRETERAS, INCLUYE: LIMPIEZA POR ASPERSION PARA ELIMINAR LA PRESENCIA DE POLVO, GRASA, ACEITE Y CUALQUIER MATERIAL, MATERIALES, MANO DE OBRA, HERRAMIENTA Y EQUIPO NECESARIO. P.U.O.T. ","PZA",5,null,null,0]
["SPV.II.98","SUMINISTRO Y APLICACION DE PINTURA PARA FLECHA CURVA, DE COLOR BLANCO PREVIAMENTE AUTORIZADO POR SUPERVISION CON PINTURA TERMOPLÁSTICA PARA TRAFICO MARCA SEMEX, Y SE LE APLICARA UN REFLEJANTE CON MICROESFERA, Y SU APLICACION SERA SEGUN LO INDICADO EN EL MANUAL DE DISPOSITIVOS PARA EL CONTROL DEL TRANSITO EN CALLES Y CARRETERAS, INCLUYE: LIMPIEZA POR ASPERSION PARA ELIMINAR LA PRESENCIA DE POLVO, GRASA, ACEITE Y CUALQUIER MATERIAL, MATERIALES, MANO DE OBRA, HERRAMIENTA Y EQUIPO NECESARIO. P.U.O.T. ","PZA",1,null,null,0]
["SPV.II.99","SUMINISTRO Y APLICACION DE PINTURA PARA FLECHAS DOBLE, DE COLOR BLANCO PREVIAMENTE AUTORIZADO POR SUPERVISION CON PINTURA TERMOPLÁSTICA PARA TRAFICO MARCA SEMEX, Y SE LE APLICARA UN REFLEJANTE CON MICROESFERA, Y SU APLICACION SERA SEGUN LO INDICADO EN EL MANUAL DE DISPOSITIVOS PARA EL CONTROL DEL TRANSITO EN CALLES Y CARRETERAS, INCLUYE: LIMPIEZA POR ASPERSION PARA ELIMINAR LA PRESENCIA DE POLVO, GRASA, ACEITE Y CUALQUIER MATERIAL, MATERIALES, MANO DE OBRA, HERRAMIENTA Y EQUIPO NECESARIO. P.U.O.T. ","PZA",3,null,null,0]
[null,"III.-INSTALACIONES ESPECIALES"]
["SPV.II.100","CONSTRUCCION DE BASE DE CONCRETO PARA ESTRUCTURA TIPO CONTEMPORANEA DE CONCRETO F’C=200 KG/CM² CON DIMENSIONES DE 0.70 M X 0.70 M X 2.00 M Y 8 ANCLAS DE ACERO DE ALTA RESISTENCIA ROSCADAS EN SU PARTE SUPERIOR, DE 1” DE DIÁMETRO POR 2.00 M DE LONGITUD.,INCLUYE: JUEGO DE 2 ANCLAS DE 1\"X200CM DE ACERO DE ALTA RESISTENCIA, 15 CM DE ROSCA, CON PUNTAS GALV. Y TORN.\n","PZA",3,null,null,{"$f":"ROUND(D183*E183,2)","v":0}]
["SPV.II.101","CONSTRUCCION DE BASE DE CONCRETO PARA POSTES TIPO PEDESTAL DE 40x40x100cm DE Fc=250Kg/cm2,INCLUYE: JUEGO DE 2 ANCLAS DE 1\"x200cm DE ACERO DE ALTA RESISTENCIA, 15 CM DE ROSCA, CON PUNTAS GALV. Y TORN.\n","PZA",4,null,null,0]
["SPV.II.102","CONSTRUCCION DE BASE DE CONCRETO PARA EL POSTE DEL CONTROLADOR, A BASE DE CONCRETO F’C=200 KG/CM² CON DIMENSIONES DE 0.48 M X 0.65 M X 1.00 M Y 4 ANCLAS DE ACERO DE ALTA RESISTENCIA ROSCADAS EN SU PARTE SUPERIOR, DE 5/8” DE DIÁMETRO POR 0.60 M DE LONGITUD.,INCLUYE: MATERIALES, MANO DE OBRA, HERRAMIENTA Y EQUIPO NECESARIO.\n","PZA",1,null,null,0]
["SPV.II.103","SUMINISTRO Y COLOCACIÓN DE REGISTRO ELÉCTRICO  PREFABRICADO DE 40x60x60 Cm, A BASE DE CONCRETO F'c = 150 Kg/Cm2. T.M.A. 3/4\". REV. DE 8 A 10 CMS. CON UN ESPESOR DE 10 CMS. PISO DE GRAVA, APLANADO INTERIOR PULIDO FINO, MARCO Y CONTRAMARCO METALICOS GALVANIZADOS ÁNGULO 1 1/2\"x 1/4\" Y TAPA DE CONCRETO ARMADO CON VARILLA CORRUGADA ALTA RESISTENCIA DEL No.2 @ 10 CMS. AMBOS SENTIDOS SOLDADAS, F'c = 250 Kg/Cm2. T.M.A. 3/4\". REVENIMIENTO DE 8 A 10 CMS. INCLUYE: EXCAVACION EN TERRENO INVESTIGADO EN SITIO, RELLENO COMPACTADO AL 90% MINIMO, CON MATERIAL SELECCIONADO PRODUCTO DE LA EXCAVACIÓN LIBRE DE BOLEO MAYOR DE 3\", NIVELADO A N.P.T., MANIOBRAS, MATERIALES, MANO DE OBRA, HERRAMIENTA Y EQUIPO NECESARIO","PZA",3,null,null,0]
["SPV.II.104","SUMINISTRO Y COLOCACION DE ESTRUCTURA PARA SEMAFORO TIPO CONTEMPORANEA SENCILLA A BASE DETUBO DE ACERO A-53 DE 8” DIÁMETRO (8.625 NOMINAL) Y ESPESOR DE 3/16”, CON 550 CM DE ALTURA, CON PLACA BASE DE ¾” X 50 CM DE DIÁMETRO, UNIDA CON 8 CARTABONES TRIANGULARES DE FO. DE ¼” DE 7 X 15 CM Y UNA PLACA UNIÓN (ENTRE POSTE Y BRAZO) DE 3/4” X 40 X 40 CM; UN REGISTRO ELÉCTRICO EN SU BASE, FABRICADO DE SOLERA CAL. 10 DE 3.8 X 19 CM CON TAPA DE ALUMINIO Y UN MEDIO COPLE EN EL POSTE DE 1 ½” DE DIÁMETRO, CON ACCESORIOS PARA LA COLOCACIÓN DE SEMÁFOROS COMO SON: NIPLE DE 1 ½” CÉDULA 40, CODO 90° CÉDULA 40 1 ½”, CONTRATUERCA DE 1 ½”, HERRAJE PARA POSTE DE 12 X 25.5 CM, TAPÓN PARA SEMÁFORO, TUERCA CUADRADA DE 3/16” Y LÁMINA CAL. 16 DE 2.5 X 7 CM. CON 1 BRAZO: SERÁ FABRICADO CON TUBO DE ACERO A-53 DE 8” DE DIÁMETRO ROLADO (8.625 NOMINAL) Y ESPESOR DE 3/16” CON UNA LONGITUD DE BRAZO VARIABLE, DE ACUERDO A PROYECTO, PLACA UNIÓN (ENTRE POSTE Y BRAZO) DE 3/4” DE 40 X 40 CM UNIDA CON 8 CARTABONES ESPECIALES DE FO. DE 1/2” X 17 X 15 CM, ACCESORIOS PARA LA COLOCACIÓN DE SEMÁFOROS: CUATRO MEDIOS COPLES DE 1 ½” DE DIÁMETRO, CUATRO NIPLES DE 1 ½” CÉDULA 40, CUATRO CODOS A 90° CÉDULA. 40 1 ½”, CUATRO CONTRATUERCAS DE 1 ½”, DOS TORNILLOS OPRESORES DE ¼”, DOS NIPLES DE 2” CÉDULA 40 DE 10 CM DE LONGITUD Y DOS NIPLES DE 1 ½” CÉDULA 40 DE 24 CM DE LONGITUD. TODA LA ESTRUCTURA DEBERÁ SER GALVANIZADA, CON ACABADO FONDO ANTICORROSIVO Y PINTURA DEL COLOR DE ACUERDO AL PROYECTO Y REGLAMENTOS VIGENTES DE LA CIUDAD.: INCLUYE: MANIOBRAS, MATERIALES, MANO DE OBRA, HERRAMIENTA Y EQUIPO NECESARIO. ","PZA",3,null,null,0]
["SPV.II.105","SUMINISTRO Y COLOCACION DE ESTRUCTURA TIPO PEDESTAL PARA COLOCAR DOS SEMAFOROS PEATONALES A BASE DE TUBO DE ACERO A-53 DE 6” DIÁMETRO Y ESPESOR DE 3/16”, CON 320 CM DE ALTURA, CON PLACA BASE DE ¾” X 30 X 30 CM, UNIDA CON 4 CARTABONES TRIANGULARES DE FO. DE ¼” DE 7 X 15 CM; UN REGISTRO ELÉCTRICO EN SU BASE, FABRICADO DE SOLERA CAL. 10 DE 3.8 X 19 CM CON TAPA DE ALUMINIO Y UN MEDIO COPLE EN EL POSTE DE 1 ½” DE DIÁMETRO, CON ACCESORIOS PARA LA COLOCACIÓN DE SEMÁFOROS COMO SON: NIPLE DE 1 ½” CÉDULA 40, CODO 90° CÉDULA 40 1 ½”, CONTRATUERCA DE 1 ½”, HERRAJE PARA POSTE DE 12 X 25.5 CM, TAPÓN PARA SEMÁFORO, TUERCA CUADRADA DE 3/16” Y LÁMINA CAL. 16 DE 2.5 X 7 CM DEBERÁ TENER UN ACABADO CON PINTURA FONDO ANTICORROSIVA Y ACABADO FINAL EN ESMALTE COLOR DE ACUERDO AL PROYECTO Y REGLAMENTOS VIGENTES DE LA CIUDAD DONDE SERÁN INSTALADOS.: INCLUYE: MANIOBRAS, MATERIALES, MANO DE OBRA, HERRAMIENTA Y EQUIPO NECESARIO.","PZA",4,null,null,0]
["SPV.II.106","SUMINISTRO E INSTALACION DE POSTE GALVANIZADO PARA CONTROLADOR C-216; INCLUYE: MATERIALES NECESARIOS, MANIOBRAS, CONSUMIBLES, DESPERDICIOS, HERRAMIENTA, EQUIPO Y MANO DE OBRA.","PZA",1,null,null,{"$f":"ROUND(D189*E189,2)","v":0}]
["SPV.II.107","SUMINISTRO E INSTALACION DE SEMAFORO EN EXTREMO: INCLUYE: SEMAFORO DE 4 LUCES DE 30cmS DE DIAMETRO FAB, EN POOLICARBONATO DE ALTO IMPACTO COLOR NEGRO CON DIODOS ELECROLULIMINCENTES TIPO LED´S TRANSPARENTES DE ALTA INTENSIDAD, HERRAJE TIPO TELEFONO Y TUERCAS NIPLE DE ALUMINIO DE 38mm, ","PZA",6,null,null,0]
["SPV.II.108","SUMINISTRO E INSTALACION DE SEMAFORO PEATONAL: INCLUYE: SEMÁFORO LED PEATONAL TIPO AMERICANO CON CRONÓMETRO DE 16” X 18”.FABRICADO EN POLICARBONATO DE ALTO IMPACTO, AJUSTE AUTOMÁTICO A LOS INTERVALOS PROGRAMADOS EN EL CONTROLADOR DE SEMÁFOROS, DÍGITOS DE CRONÓMETRO DE 9”, LUZ EMITIDA POR DIODOS, CRONÓMETRO DE LED EN COLOR ÁMBAR Y PEATÓN EN COLOR BLANCO, PEATÓN/MANO/CRONÓMETRO EN LA MISMA LÁMPARA., HERRAJE TIPO TELEFONO Y TUERCAS NIPLE DE ALUMINIO DE 38mm, ","PZA",8,null,null,0]
["SPV.II.109","SUMINISTRO, INSTALACION Y PROGRAMACION DE CONTROL ELECTRÓNICO C-216, GAB. C216, ALUM., 16 FASES, 16 ENTRADAS, 0 CANALES, S/AMP., GPS, MANUAL. INCLUYE :  INSTALACION Y PROGRAMACION DE CONTROL, SUMINISTRO DE MATERIALES,  HERRAMIENTA, EQUIPO, DESPERDICIOS Y MANO DE OBRA.","PZA",1,null,null,0]
[null,"IV. INSTALACIONES ELECTRICAS Y DE CONTROL"]
["SPV.II.110","SUMINISTRO E INSTALACION DE CABLE DE USO RUDO 5X14,  INCLUYE CARGO DIRECTO POR EL COSTO DE MANO DE OBRA Y MATERIALES REQUERIDOS, FLETE A OBRA, ACARREO, CORTE, COLOCACIÓN, CINTA AISLANTE, CINTA VULCANIZABLE, CONECTORES PONCHABLES BIMETALICOS (PUROS) EN CALIBRE ADECUADO, FIJACIÓN, LIMPIEZA Y RETIRO DE SOBRANTES FUERA DE OBRA, EQUIPO DE SEGURIDAD, INSTALACIONES ESPECÍFICAS, DEPRECIACIÓN Y DEMÁS CARGOS DERIVADOS DEL USO DE EQUIPO Y HERRAMIENTA, EN CUALQUIER NIVEL.","ML",700,null,null,{"$f":"ROUND(D194*E194,2)","v":0}]
["SPV.II.111","SUMINISTRO E INSTALACION DE TUBERÍA PAD 4 \" DE DIAMETRO, PARA CANALIZACION DE SEMAFOROS. INCLUYE: , COLOCACION DE TUBERIA, CONEXION AL REGISTRO ELECTRICO,  MANO DE OBRA, HERRAMIENTA Y EQUIPO.","ML",76,null,null,0]
["SPV.II.112","SUMINISTRO Y COLOCACIÓN DE REGISTRO ELÉCTRICO  PREFABRICADO DE 40x60x60 Cm, A BASE DE CONCRETO F'c = 150 Kg/Cm2. T.M.A. 3/4\". REV. DE 8 A 10 CMS. CON UN ESPESOR DE 10 CMS. PISO DE GRAVA, APLANADO INTERIOR PULIDO FINO, MARCO Y CONTRAMARCO METALICOS GALVANIZADOS ÁNGULO 1 1/2\"x 1/4\" Y TAPA DE CONCRETO ARMADO CON VARILLA CORRUGADA ALTA RESISTENCIA DEL No.2 @ 10 CMS. AMBOS SENTIDOS SOLDADAS, F'c = 250 Kg/Cm2. T.M.A. 3/4\". REVENIMIENTO DE 8 A 10 CMS. INCLUYE: EXCAVACION EN TERRENO INVESTIGADO EN SITIO, RELLENO COMPACTADO AL 90% MINIMO, CON MATERIAL SELECCIONADO PRODUCTO DE LA EXCAVACIÓN LIBRE DE BOLEO MAYOR DE 3\", NIVELADO A N.P.T., MANIOBRAS, MATERIALES, MANO DE OBRA, HERRAMIENTA Y EQUIPO NECESARIO","PZA",8,null,null,0]
["SPV.II.113","SUMINISTRO Y COLOCACIÓN DE CABLE DE ALUMINIO TRIPLEX XLP No. (2-2+1-2 ) (SUBTERRANEO) EN CANALIZACIÓN ELÉCTRICA, INCLUYE CARGO DIRECTO POR EL COSTO DE MANO DE OBRA Y MATERIALES REQUERIDOS, FLETE A OBRA, ACARREO, CORTE, COLOCACIÓN, CINTA AISLANTE, CINTA VULCANIZABLE, CONECTORES PONCHABLES BIMETALICOS (PUROS) EN CALIBRE ADECUADO, FIJACIÓN, LIMPIEZA Y RETIRO DE SOBRANTES FUERA DE OBRA, EQUIPO DE SEGURIDAD, INSTALACIONES ESPECÍFICAS, DEPRECIACIÓN Y DEMÁS CARGOS DERIVADOS DEL USO DE EQUIPO Y HERRAMIENTA, EN CUALQUIER NIVEL.","ML",150,null,null,0]
["SPV.II.114","SUMINISTRO Y TENDIDO DE RED DE ALIMENTACIÓN A BASE DE TUBO PVC CONDUIT PESADO DE 1 1/4 \", INCLUYE: EXCAVACIÓN, CAMA DE ARENA, TENDIDO, RELLENO, MATERILES, MANO DE OBRA, HERRAMIENTA Y EQUIPO NECESARIO PARA SU BUEN FUNCIONAMIENTO.","ML",150,null,null,0]
["SPV.II.115","SUMINISTRO Y COLOCACIÓN DE INTERRUPTOR TERMOMAGENICO SENCILLO DE  60 A , SEGÚN SE REQUIERA MARCA SQUARE D, ALUMBRADO 15 A, CONTACTOS 15 A, INCLUYE INSTALACIÓN, CONEXIÓN AJUSTES Y TODO LO NECESARIO PARA SU CORRECTA INSTALACIÓN","PZA",1,null,null,0]
["SPV.II.116","SUMINISTRO  E INSTALACION DE ALIMENTACIÓN ELECTRICA DE PARA CENTRO DE CARGA DE 4 CIRCUITOS,  A BASE DE TUBERIA FLEXIBLE TIPO LIQUID TIGHT DE 1/2  \", DOS CONDUCTORES DE COBRE CALIBRE 10 AWG PARA FASES,1 CONDUCTOR DE COBRE CALIBRE 14 AWG PARA TIERRA FISICA. INCLUYE:  CONEXION  DE CABLEADO EN  OPRESORES DE BRAKE PRINCIPAL DE  MURETE,  MATERILES, MANO DE OBRA, HERRAMIENTA Y EQUIPO NECESARIO PARA SU BUEN FUNCIONAMIENTO.","LOTE",1,null,null,0]
["SPV.II.117","SUMINISTRO E INSTALACION DE CENTRO DE CARGA MONOFASICO DE 4 CIRCUITOS ZAPATAS DE 100 A,  MARCA SQUARE D, INCLUYE:  EMPOTRE DEL MISMO, ADEMAS DE CONEXIÓN  DE ALIMENTACION.","PZA",1,null,null,0]
["SPV.II.118","DEMOLICIÓN Y REPOSICION DE CONCRETO O CARPETA ASFALTICA EN SANJA DE 30 CM DE ANCHO; INCLUYE CORTE CON REHILETE, DEMOLICIÓN, RETIRO DE ESCOMBRO, COLADO Y RESANADO CON CONCRETO F'C=150KG/CM2 O REPOSICION DE CARPETA ASFALTICA PARA INSTALACIONES ELECTRICAS PARA SEMAFOROS. MATERIALES NECESARIOS, DESPERDICIOS, HERRAMIENTA, EQUIPO Y MANO DE OBRA.","ML",60,null,null,0]
["II.5","LIBRAMIENTO DANIEL ROLDAN Y CALLE RUBI (11) "]
[null,"I. GUARNICIONES, BANQUETAS Y EQUIPAMIENTO"]
["SPV.II.119","REPARACION DE GUARNICION; INCLUYE: LIMPIEZA DE LA SUPERFICIE, RESANES CON MORTERO CEMENTO-ARENA PROP. 1:4, PASTA PARA ACABADO PULIDO, PEGACRETO, MATERIALES NECESARIOS, DESPERDICIOS, LIMPIEZA DURANTE EL PROCESO, MANO DE OBRA, HERRAMIENTA Y EQUIPO.","ML",8,null,null,{"$f":"ROUND(D205*E205,2)","v":0}]
["SPV.II.120","CONSTRUCCION DE GUARNICION DE CONCRETO F´c=150 kg/cm2. R.N. T.M.A. 19 MM. DE 15X20X40 CM DE SECCION TRAPEZOIDAL, CORTE DE JUNTAS VERTICALES CON CORTADORA DE DISCO DE DIAMANTE A UNA PROFUNDIDAD DE 1/3 DEL PERALTE DE LA GUARNICION, LA MODULACION SERÁ INDICADA POR SUPERVISIÓN, SELLADO DE LA JUNTA CON CINTILLA DE POLIETILENO Y Y SELLADOR AUTONIVELANTE A BASE DE  POLIURETANO-ASFALTO TIPO SONOMERIC 1 Ó SIMILAR. INCLUYE: CIMBRA, DESCIMBRADO, ELABORACION, COLADO, VIBRADO Y CURADO DEL CONCRETO, TRANSPORTE A LA SIGUIENTE POSICION, MATERIALES, MANO DE OBRA Y HERRAMIENTA.","ML",3.13,null,null,0]
["SPV.II.121","CONSTRUCCION DE BANQUETAS DE 8 CM DE ESPESOR, ACABADO, PULIDO Y ESCOBILLADO FINO, SE USARA EL SISTEMA DE LOSAS INTERCALADAS CON UNA RELACION LARGO/ANCHO DE HASTA 1.50, JUNTAS FRIAS ACABADO CON VOLTEADOR.  EL CONCRETO SERA F´C= 150 KG/CM2. T.M.A. 3/4\". REV. DE 8 A 10 CM PREMEZCLADO ELABORADO EN PLANTA, REFORZADO CON MALLA ELECTROSOLDADA 6-6/10-10; INCLUYE: PREPARACION DE LA SUPERFICIE DEL TERRENO, NIVELACION, AFINE, COMPACTACION AL 95 %, CIMBRA EN FRONTERAS, SUMINISTRO, COLADO, EXTENDIDO DEL CONCRETO, TRAZO Y NIVELACION, SUMINISTRO DE TODOS LOS MATERIALES NECESARIOS, ACARREOS, DESPERDICIOS, MANO DE OBRA,  HERRAMIENTA Y EQUIPO NECESARIO, LIMPIEZA GENERAL ANTES Y UNA VEZ CONCLUIDOS LOS TRABAJOS, CARGA Y ACARREO DE LOS MATERIALES NO UTILIZABLES HASTA EL LUGAR INDICADO POR SUPERVISION.","M2",17.96,null,null,0]
["SPV.II.122","RAMPA DE CONCRETO DE 10CM DE ESPESOR, DE CONCRETO F’C=150 KG/ CM2.  REFORZADO CON MALLA ELECTROSOLDADA 6-6/10-10, ACABADO PULIDO ESCOBILLADO FINO;  INCLUYE: TRAZO Y AFINE DE TERRENO SEGUN SE REQUIERA SIN ESCALONES, MANO DE OBRA, MATERIALES, EQUIPO, HERRAMIENTA Y LIMPIEZA.","M2",18.97,null,null,0]
["SPV.II.123","SUMINISTRO Y COLOCACIÓN DE  PINTURA EN RAMPAS DE TRAFICO DE COLOR AZUL, ACORDE A LAS NORMAS DE SEÑALAMIENTO HORIZONTAL Y DE MATERIALES,  INCLUYE: LIMPIEZA DEL ÁREA A APLICAR , MATERIAL, MANO DE OBRA, EQUIPO Y HERRAMIENTA. P.U.O.T.","M2",18.97,null,null,0]
["SPV.II.124","SUMINISTRO Y APLICACIÓN DE PINTURA VINILICA AHULADA MARCA COMEX, EN COLOR BLANCO O AMARILLO (PREVIAMENTE AUTORIZADO) EN TRAMOS RECTOS Y ROJO EN CURVAS, A DOS MANOS EN GUANICIONES DE CONCRETO, INCLUYE: PREPARACION DE LA SUPERFICIE, LIMPIEZA, MATERIALES, MANO DE OBRA Y HERRAMIENTA.","ML",178,null,null,0]
[null,"II.- SEÑALAMIENTO VERTICAL Y HORIZONTAL"]
["SPV.II.125","SUMINISTRO Y APLICACION DE PINTURA DE MARCAS M-7.1 RAYAS PARA CRUCE DE PEATONES EN VÍAS PRIMARIAS, CON PINTURA TERMOPLÁSTICA COLOR AMARILLO RETRORREFLEJANTE DE 40 CM DE ANCHO,  INCLUYE LIMPIEZA POR ASPERSION PARA ELIMINAR LA PRESENCIA DE POLVO, GRASA, ACEITE Y CUALQUIER MATERIAL, MATERIALES, MANO DE OBRA, HERRAMIENTA Y EQUIPO NECESARIO.","ML",{"$f":"66*4","v":264},null,null,{"$f":"ROUND(D212*E212,2)","v":0}]
["SPV.II.126","SUMINISTRO Y APLICACION DE PINTURA PARA LINEA DE ALTODE COLOR BLANCO PREVIAMENTE AUTORIZADO POR SUPERVISION CON PINTURA TERMOPLÁSTICA PARA TRAFICO MARCA SEMEX, Y SE LE APLICARA UN REFLEJANTE CON MICROESFERA, Y SU APLICACION SERA SEGUN LO INDICADO EN EL MANUAL DE DISPOSITIVOS PARA EL CONTROL DEL TRANSITO EN CALLES Y CARRETERAS, INCLUYE: LIMPIEZA POR ASPERSION PARA ELIMINAR LA PRESENCIA DE POLVO, GRASA, ACEITE Y CUALQUIER MATERIAL, MATERIALES, MANO DE OBRA, HERRAMIENTA Y EQUIPO NECESARIO. P.U.O.T. ","ML",20,null,null,0]
["SPV.II.127","SUMINISTRO Y APLICACION DE PINTURA PARA FLECHAS, LETRAS, NUMEROS DE COLOR BLANCO PREVIAMENTE AUTORIZADO POR SUPERVISION CON PINTURA TERMOPLÁSTICA PARA TRAFICO MARCA SEMEX, Y SE LE APLICARA UN REFLEJANTE CON MICROESFERA, Y SU APLICACION SERA SEGUN LO INDICADO EN EL MANUAL DE DISPOSITIVOS PARA EL CONTROL DEL TRANSITO EN CALLES Y CARRETERAS, INCLUYE: LIMPIEZA POR ASPERSION PARA ELIMINAR LA PRESENCIA DE POLVO, GRASA, ACEITE Y CUALQUIER MATERIAL, MATERIALES, MANO DE OBRA, HERRAMIENTA Y EQUIPO NECESARIO. P.U.O.T. ","PZA",8,null,null,0]
[null,"III.-INSTALACIONES ESPECIALES"]
["SPV.II.128","CONSTRUCCION DE BASE DE CONCRETO PARA ESTRUCTURA TIPO CONTEMPORANEA DE CONCRETO F’C=200 KG/CM² CON DIMENSIONES DE 0.70 M X 0.70 M X 2.00 M Y 8 ANCLAS DE ACERO DE ALTA RESISTENCIA ROSCADAS EN SU PARTE SUPERIOR, DE 1” DE DIÁMETRO POR 2.00 M DE LONGITUD.,INCLUYE: JUEGO DE 2 ANCLAS DE 1\"X200CM DE ACERO DE ALTA RESISTENCIA, 15 CM DE ROSCA, CON PUNTAS GALV. Y TORN.\n","PZA",3,null,null,{"$f":"ROUND(D216*E216,2)","v":0}]
["SPV.II.129","CONSTRUCCION DE BASE DE CONCRETO PARA EL POSTE DEL CONTROLADOR, A BASE DE CONCRETO F’C=200 KG/CM² CON DIMENSIONES DE 0.48 M X 0.65 M X 1.00 M Y 4 ANCLAS DE ACERO DE ALTA RESISTENCIA ROSCADAS EN SU PARTE SUPERIOR, DE 5/8” DE DIÁMETRO POR 0.60 M DE LONGITUD.,INCLUYE: MATERIALES, MANO DE OBRA, HERRAMIENTA Y EQUIPO NECESARIO.\n","PZA",1,null,null,0]
["SPV.II.130","SUMINISTRO Y COLOCACIÓN DE REGISTRO ELÉCTRICO  PREFABRICADO DE 40x60x60 Cm, A BASE DE CONCRETO F'c = 150 Kg/Cm2. T.M.A. 3/4\". REV. DE 8 A 10 CMS. CON UN ESPESOR DE 10 CMS. PISO DE GRAVA, APLANADO INTERIOR PULIDO FINO, MARCO Y CONTRAMARCO METALICOS GALVANIZADOS ÁNGULO 1 1/2\"x 1/4\" Y TAPA DE CONCRETO ARMADO CON VARILLA CORRUGADA ALTA RESISTENCIA DEL No.2 @ 10 CMS. AMBOS SENTIDOS SOLDADAS, F'c = 250 Kg/Cm2. T.M.A. 3/4\". REVENIMIENTO DE 8 A 10 CMS. INCLUYE: EXCAVACION EN TERRENO INVESTIGADO EN SITIO, RELLENO COMPACTADO AL 90% MINIMO, CON MATERIAL SELECCIONADO PRODUCTO DE LA EXCAVACIÓN LIBRE DE BOLEO MAYOR DE 3\", NIVELADO A N.P.T., MANIOBRAS, MATERIALES, MANO DE OBRA, HERRAMIENTA Y EQUIPO NECESARIO","PZA",4,null,null,0]
["SPV.II.131","SUMINISTRO Y COLOCACION DE ESTRUCTURA PARA SEMAFORO TIPO CONTEMPORANEA SENCILLA A BASE DETUBO DE ACERO A-53 DE 8” DIÁMETRO (8.625 NOMINAL) Y ESPESOR DE 3/16”, CON 550 CM DE ALTURA, CON PLACA BASE DE ¾” X 50 CM DE DIÁMETRO, UNIDA CON 8 CARTABONES TRIANGULARES DE FO. DE ¼” DE 7 X 15 CM Y UNA PLACA UNIÓN (ENTRE POSTE Y BRAZO) DE 3/4” X 40 X 40 CM; UN REGISTRO ELÉCTRICO EN SU BASE, FABRICADO DE SOLERA CAL. 10 DE 3.8 X 19 CM CON TAPA DE ALUMINIO Y UN MEDIO COPLE EN EL POSTE DE 1 ½” DE DIÁMETRO, CON ACCESORIOS PARA LA COLOCACIÓN DE SEMÁFOROS COMO SON: NIPLE DE 1 ½” CÉDULA 40, CODO 90° CÉDULA 40 1 ½”, CONTRATUERCA DE 1 ½”, HERRAJE PARA POSTE DE 12 X 25.5 CM, TAPÓN PARA SEMÁFORO, TUERCA CUADRADA DE 3/16” Y LÁMINA CAL. 16 DE 2.5 X 7 CM. CON 1 BRAZO: SERÁ FABRICADO CON TUBO DE ACERO A-53 DE 8” DE DIÁMETRO ROLADO (8.625 NOMINAL) Y ESPESOR DE 3/16” CON UNA LONGITUD DE BRAZO VARIABLE, DE ACUERDO A PROYECTO, PLACA UNIÓN (ENTRE POSTE Y BRAZO) DE 3/4” DE 40 X 40 CM UNIDA CON 8 CARTABONES ESPECIALES DE FO. DE 1/2” X 17 X 15 CM, ACCESORIOS PARA LA COLOCACIÓN DE SEMÁFOROS: CUATRO MEDIOS COPLES DE 1 ½” DE DIÁMETRO, CUATRO NIPLES DE 1 ½” CÉDULA 40, CUATRO CODOS A 90° CÉDULA. 40 1 ½”, CUATRO CONTRATUERCAS DE 1 ½”, DOS TORNILLOS OPRESORES DE ¼”, DOS NIPLES DE 2” CÉDULA 40 DE 10 CM DE LONGITUD Y DOS NIPLES DE 1 ½” CÉDULA 40 DE 24 CM DE LONGITUD. TODA LA ESTRUCTURA DEBERÁ SER GALVANIZADA, CON ACABADO FONDO ANTICORROSIVO Y PINTURA DEL COLOR DE ACUERDO AL PROYECTO Y REGLAMENTOS VIGENTES DE LA CIUDAD.: INCLUYE: MANIOBRAS, MATERIALES, MANO DE OBRA, HERRAMIENTA Y EQUIPO NECESARIO. ","PZA",3,null,null,0]
["SPV.II.132","SUMINISTRO E INSTALACION DE POSTE GALVANIZADO PARA CONTROLADOR C-210; INCLUYE: MATERIALES NECESARIOS, MANIOBRAS, CONSUMIBLES, DESPERDICIOS, HERRAMIENTA, EQUIPO Y MANO DE OBRA.","PZA",1,null,null,0]
["SPV.II.133","SUMINISTRO E INSTALACION DE SEMAFORO EN EXTREMO: INCLUYE: SEMAFORO DE 4 LUCES DE 30cmS DE DIAMETRO FAB, EN POOLICARBONATO DE ALTO IMPACTO COLOR NEGRO CON DIODOS ELECROLULIMINCENTES TIPO LED´S TRANSPARENTES DE ALTA INTENSIDAD, HERRAJE TIPO TELEFONO Y TUERCAS NIPLE DE ALUMINIO DE 38mm, ","PZA",6,null,null,0]
["SPV.II.134","SUMINISTRO, INSTALACION Y PROGRAMACION DE CONTROL ELECTRÓNICO C-210. INCLUYE :  INSTALACION Y PROGRAMACION DE CONTROL, SUMINISTRO DE MATERIALES,  HERRAMIENTA, EQUIPO, DESPERDICIOS Y MANO DE OBRA.","PZA",1,null,null,0]
[null,"IV. INSTALACIONES ELECTRICAS Y DE CONTROL"]
["SPV.II.135","SUMINISTRO E INSTALACION DE CABLE DE USO RUDO 5X14,  INCLUYE CARGO DIRECTO POR EL COSTO DE MANO DE OBRA Y MATERIALES REQUERIDOS, FLETE A OBRA, ACARREO, CORTE, COLOCACIÓN, CINTA AISLANTE, CINTA VULCANIZABLE, CONECTORES PONCHABLES BIMETALICOS (PUROS) EN CALIBRE ADECUADO, FIJACIÓN, LIMPIEZA Y RETIRO DE SOBRANTES FUERA DE OBRA, EQUIPO DE SEGURIDAD, INSTALACIONES ESPECÍFICAS, DEPRECIACIÓN Y DEMÁS CARGOS DERIVADOS DEL USO DE EQUIPO Y HERRAMIENTA, EN CUALQUIER NIVEL.","ML",400,null,null,{"$f":"ROUND(D224*E224,2)","v":0}]
["SPV.II.136","SUMINISTRO Y COLOCACIÓN DE CABLE DE ALUMINIO TRIPLEX XLP No. (2-4+1-4 ) (SUBTERRANEO) EN CANALIZACIÓN ELÉCTRICA, INCLUYE CARGO DIRECTO POR EL COSTO DE MANO DE OBRA Y MATERIALES REQUERIDOS, FLETE A OBRA, ACARREO, CORTE, COLOCACIÓN, CINTA AISLANTE, CINTA VULCANIZABLE, CONECTORES PONCHABLES BIMETALICOS (PUROS) EN CALIBRE ADECUADO, FIJACIÓN, LIMPIEZA Y RETIRO DE SOBRANTES FUERA DE OBRA, EQUIPO DE SEGURIDAD, INSTALACIONES ESPECÍFICAS, DEPRECIACIÓN Y DEMÁS CARGOS DERIVADOS DEL USO DE EQUIPO Y HERRAMIENTA, EN CUALQUIER NIVEL.","ML",20,null,null,0]
["SPV.II.137","SUMINISTRO Y TENDIDO DE RED DE ALIMENTACIÓN DE LUMINARIAS A BASE DE TUBO PVC CONDUIT PESADO DE 1 1/4 \", INCLUYE: EXCAVACIÓN, CAMA DE ARENA, TENDIDO, RELLENO, MATERILES, MANO DE OBRA, HERRAMIENTA Y EQUIPO NECESARIO PARA SU BUEN FUNCIONAMIENTO.","ML",20,null,null,0]
["SPV.II.138","SUMINISTRO Y COLOCACIÓN DE INTERRUPTOR TERMOMAGENICO SENCILLO DE  40 A , SEGÚN SE REQUIERA MARCA SQUARE D, ALUMBRADO 15 A, CONTACTOS 15 A, INCLUYE INSTALACIÓN, CONEXIÓN AJUSTES Y TODO LO NECESARIO PARA SU CORRECTA INSTALACIÓN","PZA",1,null,null,0]
["SPV.II.139","SUMINISTRO  E INSTALACION DE ALIMENTACIÓN ELECTRICA DE PARA CENTRO DE CARGA DE 2 CIRCUITOS,  A BASE DE TUBERIA FLEXIBLE TIPO LIQUID TIGHT DE 1/2  \", DOS CONDUCTORES DE COBRE CALIBRE 10 AWG PARA FASES,1 CONDUCTOR DE COBRE CALIBRE 14 AWG PARA TIERRA FISICA. INCLUYE:  CONEXION  DE CABLEADO EN  OPRESORES DE BRAKE PRINCIPAL DE  MURETE,  MATERILES, MANO DE OBRA, HERRAMIENTA Y EQUIPO NECESARIO PARA SU BUEN FUNCIONAMIENTO.","LOTE",1,null,null,0]
["SPV.II.140","DEMOLICIÓN Y REPOSICION DE CONCRETO O CARPETA ASFALTICA EN SANJA DE 30 CM DE ANCHO; INCLUYE CORTE CON REHILETE, DEMOLICIÓN, RETIRO DE ESCOMBRO, COLADO Y RESANADO CON CONCRETO F'C=150KG/CM2 O REPOSICION DE CARPETA ASFALTICA PARA INSTALACIONES ELECTRICAS PARA SEMAFOROS. MATERIALES NECESARIOS, DESPERDICIOS, HERRAMIENTA, EQUIPO Y MANO DE OBRA.","ML",20,null,null,0]
[{"$f":"#REF!","v":{"$error":"#REF!"}},"LIBRAMIENTO DANIEL ROLDAN Y PROL. J. MUJICA (12) "]
[null,"I. GUARNICIONES, BANQUETAS Y EQUIPAMIENTO"]
["SPV.II.141","DEMOLICION DE GUARNICIONES DE CONCRETO EXISTENTES POR ENCONTRARSE EN MALAS CONDICIONES Y/O NO DAR LOS NIVELES DE PROYECTO. INCLUYE: CORTE CON CORTADORA DE DISCO, CARGA Y RETIRO DE ESCOMBRO FUERA DE LA OBRA HASTA EL LUGAR INDICADO POR LA SUPERVISION, LA MANO DE OBRA, HERRAMIENTA Y EQUIPO NECESARIO.","ML",23.17,null,null,{"$f":"ROUND(D232*E232,2)","v":0}]
["SPV.II.142","REPARACION DE GUARNICION; INCLUYE: LIMPIEZA DE LA SUPERFICIE, RESANES CON MORTERO CEMENTO-ARENA PROP. 1:4, PASTA PARA ACABADO PULIDO, PEGACRETO, MATERIALES NECESARIOS, DESPERDICIOS, LIMPIEZA DURANTE EL PROCESO, MANO DE OBRA, HERRAMIENTA Y EQUIPO.","ML",15,null,null,0]
["SPV.II.143","CONSTRUCCION DE GUARNICION DE CONCRETO F´c=150 kg/cm2. R.N. T.M.A. 19 MM. DE 15X20X40 CM DE SECCION TRAPEZOIDAL, CORTE DE JUNTAS VERTICALES CON CORTADORA DE DISCO DE DIAMANTE A UNA PROFUNDIDAD DE 1/3 DEL PERALTE DE LA GUARNICION, LA MODULACION SERÁ INDICADA POR SUPERVISIÓN, SELLADO DE LA JUNTA CON CINTILLA DE POLIETILENO Y Y SELLADOR AUTONIVELANTE A BASE DE  POLIURETANO-ASFALTO TIPO SONOMERIC 1 Ó SIMILAR. INCLUYE: CIMBRA, DESCIMBRADO, ELABORACION, COLADO, VIBRADO Y CURADO DEL CONCRETO, TRANSPORTE A LA SIGUIENTE POSICION, MATERIALES, MANO DE OBRA Y HERRAMIENTA.","ML",128.61000000000001,null,null,0]
["SPV.II.144","CONSTRUCCION DE PISO DE 10 CM DE ESPESOR, ACABADO, PULIDO Y ESCOBILLADO FINO, SE USARA EL SISTEMA DE LOSAS INTERCALADAS CON UNA RELACION LARGO/ANCHO DE HASTA 1.50, JUNTAS FRIAS ACABADO CON VOLTEADOR.  EL CONCRETO SERA F´C= 150 KG/CM2. T.M.A. 3/4\". REV. DE 8 A 10 CM PREMEZCLADO ELABORADO EN PLANTA, REFORZADO CON MALLA ELECTROSOLDADA 6-6/10-10; INCLUYE: PREPARACION DE LA SUPERFICIE DEL TERRENO, NIVELACION, AFINE, COMPACTACION AL 95 %, CIMBRA EN FRONTERAS, SUMINISTRO, COLADO, EXTENDIDO DEL CONCRETO, TRAZO Y NIVELACION, SUMINISTRO DE TODOS LOS MATERIALES NECESARIOS, ACARREOS, DESPERDICIOS, MANO DE OBRA,  HERRAMIENTA Y EQUIPO NECESARIO, LIMPIEZA GENERAL ANTES Y UNA VEZ CONCLUIDOS LOS TRABAJOS, CARGA Y ACARREO DE LOS MATERIALES NO UTILIZABLES HASTA EL LUGAR INDICADO POR SUPERVISION.","M2",30.99,null,null,0]
["SPV.II.145","RAMPA DE CONCRETO DE 10CM DE ESPESOR, DE CONCRETO F’C=150 KG/ CM2.  REFORZADO CON MALLA ELECTROSOLDADA 6-6/10-10, ACABADO PULIDO ESCOBILLADO FINO;  INCLUYE: TRAZO Y AFINE DE TERRENO SEGUN SE REQUIERA SIN ESCALONES, MANO DE OBRA, MATERIALES, EQUIPO, HERRAMIENTA Y LIMPIEZA.","M2",15.72,null,null,0]
["SPV.II.146","SUMINISTRO Y COLOCACIÓN DE  PINTURA EN RAMPAS DE TRAFICO DE COLOR AZUL, ACORDE A LAS NORMAS DE SEÑALAMIENTO HORIZONTAL Y DE MATERIALES,  INCLUYE: LIMPIEZA DEL ÁREA A APLICAR , MATERIAL, MANO DE OBRA, EQUIPO Y HERRAMIENTA. P.U.O.T.","M2",15.72,null,null,0]
["SPV.II.147","SUMINISTRO Y APLICACIÓN DE PINTURA VINILICA AHULADA MARCA COMEX, EN COLOR BLANCO O AMARILLO (PREVIAMENTE AUTORIZADO) EN TRAMOS RECTOS Y ROJO EN CURVAS, A DOS MANOS EN GUANICIONES DE CONCRETO, INCLUYE: PREPARACION DE LA SUPERFICIE, LIMPIEZA, MATERIALES, MANO DE OBRA Y HERRAMIENTA.","ML",176,null,null,0]
[null,"II.- SEÑALAMIENTO VERTICAL Y HORIZONTAL"]
["SPV.II.148","SUMINISTRO Y APLICACION DE PINTURA DE MARCAS M-7.1 RAYAS PARA CRUCE DE PEATONES EN VÍAS PRIMARIAS, CON PINTURA TERMOPLÁSTICA COLOR AMARILLO RETRORREFLEJANTE DE 40 CM DE ANCHO,  INCLUYE LIMPIEZA POR ASPERSION PARA ELIMINAR LA PRESENCIA DE POLVO, GRASA, ACEITE Y CUALQUIER MATERIAL, MATERIALES, MANO DE OBRA, HERRAMIENTA Y EQUIPO NECESARIO.","ML",{"$f":"42*4","v":168},null,null,{"$f":"ROUND(D240*E240,2)","v":0}]
["SPV.II.149","SUMINISTRO Y APLICACION DE PINTURA PARA LINEA DE ALTODE COLOR BLANCO PREVIAMENTE AUTORIZADO POR SUPERVISION CON PINTURA TERMOPLÁSTICA PARA TRAFICO MARCA SEMEX, Y SE LE APLICARA UN REFLEJANTE CON MICROESFERA, Y SU APLICACION SERA SEGUN LO INDICADO EN EL MANUAL DE DISPOSITIVOS PARA EL CONTROL DEL TRANSITO EN CALLES Y CARRETERAS, INCLUYE: LIMPIEZA POR ASPERSION PARA ELIMINAR LA PRESENCIA DE POLVO, GRASA, ACEITE Y CUALQUIER MATERIAL, MATERIALES, MANO DE OBRA, HERRAMIENTA Y EQUIPO NECESARIO. P.U.O.T. ","ML",17,null,null,0]
["SPV.II.150","SUMINISTRO Y APLICACION DE PINTURA PARA FLECHAS, LETRAS, NUMEROS DE COLOR BLANCO PREVIAMENTE AUTORIZADO POR SUPERVISION CON PINTURA TERMOPLÁSTICA PARA TRAFICO MARCA SEMEX, Y SE LE APLICARA UN REFLEJANTE CON MICROESFERA, Y SU APLICACION SERA SEGUN LO INDICADO EN EL MANUAL DE DISPOSITIVOS PARA EL CONTROL DEL TRANSITO EN CALLES Y CARRETERAS, INCLUYE: LIMPIEZA POR ASPERSION PARA ELIMINAR LA PRESENCIA DE POLVO, GRASA, ACEITE Y CUALQUIER MATERIAL, MATERIALES, MANO DE OBRA, HERRAMIENTA Y EQUIPO NECESARIO. P.U.O.T. ","PZA",6,null,null,0]
["SPV.II.151","SUMINISTRO Y APLICACION DE PINTURA PARA FLECHAS DOBLE, DE COLOR BLANCO PREVIAMENTE AUTORIZADO POR SUPERVISION CON PINTURA TERMOPLÁSTICA PARA TRAFICO MARCA SEMEX, Y SE LE APLICARA UN REFLEJANTE CON MICROESFERA, Y SU APLICACION SERA SEGUN LO INDICADO EN EL MANUAL DE DISPOSITIVOS PARA EL CONTROL DEL TRANSITO EN CALLES Y CARRETERAS, INCLUYE: LIMPIEZA POR ASPERSION PARA ELIMINAR LA PRESENCIA DE POLVO, GRASA, ACEITE Y CUALQUIER MATERIAL, MATERIALES, MANO DE OBRA, HERRAMIENTA Y EQUIPO NECESARIO. P.U.O.T. ","PZA",2,null,null,0]
[null,"III.-INSTALACIONES ESPECIALES"]
["SPV.II.152","CONSTRUCCION DE BASE DE CONCRETO PARA ESTRUCTURA TIPO CONTEMPORANEA DE CONCRETO F’C=200 KG/CM² CON DIMENSIONES DE 0.70 M X 0.70 M X 2.00 M Y 8 ANCLAS DE ACERO DE ALTA RESISTENCIA ROSCADAS EN SU PARTE SUPERIOR, DE 1” DE DIÁMETRO POR 2.00 M DE LONGITUD.,INCLUYE: JUEGO DE 2 ANCLAS DE 1\"X200CM DE ACERO DE ALTA RESISTENCIA, 15 CM DE ROSCA, CON PUNTAS GALV. Y TORN.\n","PZA",1,null,null,{"$f":"ROUND(D245*E245,2)","v":0}]
["SPV.II.153","CONSTRUCCION DE BASE DE CONCRETO PARA EL POSTE DEL CONTROLADOR, A BASE DE CONCRETO F’C=200 KG/CM² CON DIMENSIONES DE 0.48 M X 0.65 M X 1.00 M Y 4 ANCLAS DE ACERO DE ALTA RESISTENCIA ROSCADAS EN SU PARTE SUPERIOR, DE 5/8” DE DIÁMETRO POR 0.60 M DE LONGITUD.,INCLUYE: MATERIALES, MANO DE OBRA, HERRAMIENTA Y EQUIPO NECESARIO.\n","PZA",1,null,null,0]
["SPV.II.154","SUMINISTRO Y COLOCACIÓN DE REGISTRO ELÉCTRICO  PREFABRICADO DE 40x60x60 Cm, A BASE DE CONCRETO F'c = 150 Kg/Cm2. T.M.A. 3/4\". REV. DE 8 A 10 CMS. CON UN ESPESOR DE 10 CMS. PISO DE GRAVA, APLANADO INTERIOR PULIDO FINO, MARCO Y CONTRAMARCO METALICOS GALVANIZADOS ÁNGULO 1 1/2\"x 1/4\" Y TAPA DE CONCRETO ARMADO CON VARILLA CORRUGADA ALTA RESISTENCIA DEL No.2 @ 10 CMS. AMBOS SENTIDOS SOLDADAS, F'c = 250 Kg/Cm2. T.M.A. 3/4\". REVENIMIENTO DE 8 A 10 CMS. INCLUYE: EXCAVACION EN TERRENO INVESTIGADO EN SITIO, RELLENO COMPACTADO AL 90% MINIMO, CON MATERIAL SELECCIONADO PRODUCTO DE LA EXCAVACIÓN LIBRE DE BOLEO MAYOR DE 3\", NIVELADO A N.P.T., MANIOBRAS, MATERIALES, MANO DE OBRA, HERRAMIENTA Y EQUIPO NECESARIO","PZA",1,null,null,0]
["SPV.II.155","SUMINISTRO Y COLOCACION DE ESTRUCTURA PARA SEMAFORO TIPO CONTEMPORANEA DOBLE A BASE DE TUBO DE ACERO A-53 DE 8” DIÁMETRO (8.625 NOMINAL) Y ESPESOR DE 3/16”, CON 550 CM DE ALTURA, CON PLACA BASE DE ¾” X 50 CM DE DIÁMETRO, UNIDA CON 8 CARTABONES TRIANGULARES DE FO. DE ¼” DE 7 X 15 CM Y UNA PLACA UNIÓN (ENTRE POSTE Y BRAZO) DE 3/4” X 40 X 40 CM; UN REGISTRO ELÉCTRICO EN SU BASE, FABRICADO DE SOLERA CAL. 10 DE 3.8 X 19 CM CON TAPA DE ALUMINIO Y UN MEDIO COPLE EN EL POSTE DE 1 ½” DE DIÁMETRO, CON ACCESORIOS PARA LA COLOCACIÓN DE SEMÁFOROS COMO SON: NIPLE DE 1 ½” CÉDULA 40, CODO 90° CÉDULA 40 1 ½”, CONTRATUERCA DE 1 ½”, HERRAJE PARA POSTE DE 12 X 25.5 CM, TAPÓN PARA SEMÁFORO, TUERCA CUADRADA DE 3/16” Y LÁMINA CAL. 16 DE 2.5 X 7 CM. CON 2  BRAZOS: SERÁ FABRICADO CON TUBO DE ACERO A-53 DE 8” DE DIÁMETRO ROLADO (8.625 NOMINAL) Y ESPESOR DE 3/16” CON UNA LONGITUD DE BRAZO VARIABLE, DE ACUERDO A PROYECTO, PLACA UNIÓN (ENTRE POSTE Y BRAZO) DE 3/4” DE 40 X 40 CM UNIDA CON 8 CARTABONES ESPECIALES DE FO. DE 1/2” X 17 X 15 CM, ACCESORIOS PARA LA COLOCACIÓN DE SEMÁFOROS: CUATRO MEDIOS COPLES DE 1 ½” DE DIÁMETRO, CUATRO NIPLES DE 1 ½” CÉDULA 40, CUATRO CODOS A 90° CÉDULA. 40 1 ½”, CUATRO CONTRATUERCAS DE 1 ½”, DOS TORNILLOS OPRESORES DE ¼”, DOS NIPLES DE 2” CÉDULA 40 DE 10 CM DE LONGITUD Y DOS NIPLES DE 1 ½” CÉDULA 40 DE 24 CM DE LONGITUD. TODA LA ESTRUCTURA DEBERÁ SER GALVANIZADA, CON ACABADO FONDO ANTICORROSIVO Y PINTURA DEL COLOR DE ACUERDO AL PROYECTO Y REGLAMENTOS VIGENTES DE LA CIUDAD.: INCLUYE: MANIOBRAS, MATERIALES, MANO DE OBRA, HERRAMIENTA Y EQUIPO NECESARIO. ","PZA",1,null,null,0]
["SPV.II.156","SUMINISTRO E INSTALACION DE POSTE GALVANIZADO PARA CONTROLADOR C-210; INCLUYE: MATERIALES NECESARIOS, MANIOBRAS, CONSUMIBLES, DESPERDICIOS, HERRAMIENTA, EQUIPO Y MANO DE OBRA.","PZA",1,null,null,0]
["SPV.II.157","SUMINISTRO E INSTALACION DE SEMAFORO EN EXTREMO: INCLUYE: SEMAFORO DE 4 LUCES DE 30cmS DE DIAMETRO FAB, EN POOLICARBONATO DE ALTO IMPACTO COLOR NEGRO CON DIODOS ELECROLULIMINCENTES TIPO LED´S TRANSPARENTES DE ALTA INTENSIDAD, HERRAJE TIPO TELEFONO Y TUERCAS NIPLE DE ALUMINIO DE 38mm, ","PZA",6,null,null,0]
["SPV.II.158","SUMINISTRO, INSTALACION Y PROGRAMACION DE CONTROL ELECTRÓNICO C-210. INCLUYE :  INSTALACION Y PROGRAMACION DE CONTROL, SUMINISTRO DE MATERIALES,  HERRAMIENTA, EQUIPO, DESPERDICIOS Y MANO DE OBRA.","PZA",1,null,null,0]
[null,"IV. INSTALACION ELECTRICA Y DE CONTROL"]
["SPV.II.159","SUMINISTRO E INSTALACION DE CABLE DE USO RUDO 5X14,  INCLUYE CARGO DIRECTO POR EL COSTO DE MANO DE OBRA Y MATERIALES REQUERIDOS, FLETE A OBRA, ACARREO, CORTE, COLOCACIÓN, CINTA AISLANTE, CINTA VULCANIZABLE, CONECTORES PONCHABLES BIMETALICOS (PUROS) EN CALIBRE ADECUADO, FIJACIÓN, LIMPIEZA Y RETIRO DE SOBRANTES FUERA DE OBRA, EQUIPO DE SEGURIDAD, INSTALACIONES ESPECÍFICAS, DEPRECIACIÓN Y DEMÁS CARGOS DERIVADOS DEL USO DE EQUIPO Y HERRAMIENTA, EN CUALQUIER NIVEL.","ML",400,null,null,{"$f":"ROUND(D253*E253,2)","v":0}]
["SPV.II.160","SUMINISTRO E INSTALACION DE TUBERÍA PAD 4 \" DE DIAMETRO, PARA CANALIZACION DE SEMAFOROS. INCLUYE: , COLOCACION DE TUBERIA, CONEXION AL REGISTRO ELECTRICO,  MANO DE OBRA, HERRAMIENTA Y EQUIPO.","ML",65,null,null,0]
["SPV.II.161","SUMINISTRO Y COLOCACIÓN DE REGISTRO ELÉCTRICO  PREFABRICADO DE 40x60x60 Cm, A BASE DE CONCRETO F'c = 150 Kg/Cm2. T.M.A. 3/4\". REV. DE 8 A 10 CMS. CON UN ESPESOR DE 10 CMS. PISO DE GRAVA, APLANADO INTERIOR PULIDO FINO, MARCO Y CONTRAMARCO METALICOS GALVANIZADOS ÁNGULO 1 1/2\"x 1/4\" Y TAPA DE CONCRETO ARMADO CON VARILLA CORRUGADA ALTA RESISTENCIA DEL No.2 @ 10 CMS. AMBOS SENTIDOS SOLDADAS, F'c = 250 Kg/Cm2. T.M.A. 3/4\". REVENIMIENTO DE 8 A 10 CMS. INCLUYE: EXCAVACION EN TERRENO INVESTIGADO EN SITIO, RELLENO COMPACTADO AL 90% MINIMO, CON MATERIAL SELECCIONADO PRODUCTO DE LA EXCAVACIÓN LIBRE DE BOLEO MAYOR DE 3\", NIVELADO A N.P.T., MANIOBRAS, MATERIALES, MANO DE OBRA, HERRAMIENTA Y EQUIPO NECESARIO","PZA",4,null,null,0]
["SPV.II.162","SUMINISTRO Y COLOCACIÓN DE CABLE DE ALUMINIO TRIPLEX XLP No. (2-4+1-4 ) (SUBTERRANEO) EN CANALIZACIÓN ELÉCTRICA, INCLUYE CARGO DIRECTO POR EL COSTO DE MANO DE OBRA Y MATERIALES REQUERIDOS, FLETE A OBRA, ACARREO, CORTE, COLOCACIÓN, CINTA AISLANTE, CINTA VULCANIZABLE, CONECTORES PONCHABLES BIMETALICOS (PUROS) EN CALIBRE ADECUADO, FIJACIÓN, LIMPIEZA Y RETIRO DE SOBRANTES FUERA DE OBRA, EQUIPO DE SEGURIDAD, INSTALACIONES ESPECÍFICAS, DEPRECIACIÓN Y DEMÁS CARGOS DERIVADOS DEL USO DE EQUIPO Y HERRAMIENTA, EN CUALQUIER NIVEL.","ML",120,null,null,0]
["SPV.II.163","SUMINISTRO Y TENDIDO DE RED DE ALIMENTACIÓN DE LUMINARIAS A BASE DE TUBO PVC CONDUIT PESADO DE 1 1/4 \", INCLUYE: EXCAVACIÓN, CAMA DE ARENA, TENDIDO, RELLENO, MATERILES, MANO DE OBRA, HERRAMIENTA Y EQUIPO NECESARIO PARA SU BUEN FUNCIONAMIENTO.","ML",120,null,null,0]
["SPV.II.164","SUMINISTRO Y COLOCACIÓN DE INTERRUPTOR TERMOMAGENICO SENCILLO DE  40 A , SEGÚN SE REQUIERA MARCA SQUARE D, ALUMBRADO 15 A, CONTACTOS 15 A, INCLUYE INSTALACIÓN, CONEXIÓN AJUSTES Y TODO LO NECESARIO PARA SU CORRECTA INSTALACIÓN","PZA",1,null,null,0]
["SPV.II.165","SUMINISTRO  E INSTALACION DE ALIMENTACIÓN ELECTRICA DE PARA CENTRO DE CARGA DE 2 CIRCUITOS,  A BASE DE TUBERIA FLEXIBLE TIPO LIQUID TIGHT DE 1/2  \", DOS CONDUCTORES DE COBRE CALIBRE 10 AWG PARA FASES,1 CONDUCTOR DE COBRE CALIBRE 14 AWG PARA TIERRA FISICA. INCLUYE:  CONEXION  DE CABLEADO EN  OPRESORES DE BRAKE PRINCIPAL DE  MURETE,  MATERILES, MANO DE OBRA, HERRAMIENTA Y EQUIPO NECESARIO PARA SU BUEN FUNCIONAMIENTO.","LOTE",1,null,null,0]
["SPV.II.166","SUMINISTRO  E INSTALACION DE ALIMENTACIÓN ELECTRICA DE PARA CENTRO DE CARGA DE 2 CIRCUITOS,  A BASE DE TUBERIA FLEXIBLE TIPO LIQUID TIGHT DE 1/2  \", DOS CONDUCTORES DE COBRE CALIBRE 10 AWG PARA FASES,1 CONDUCTOR DE COBRE CALIBRE 14 AWG PARA TIERRA FISICA. INCLUYE:  CONEXION  DE CABLEADO EN  OPRESORES DE BRAKE PRINCIPAL DE  MURETE,  MATERILES, MANO DE OBRA, HERRAMIENTA Y EQUIPO NECESARIO PARA SU BUEN FUNCIONAMIENTO.","LOTE",1,null,null,0]
["SPV.II.167","DEMOLICIÓN Y REPOSICION DE CONCRETO O CARPETA ASFALTICA EN SANJA DE 30 CM DE ANCHO; INCLUYE CORTE CON REHILETE, DEMOLICIÓN, RETIRO DE ESCOMBRO, COLADO Y RESANADO CON CONCRETO F'C=150KG/CM2 O REPOSICION DE CARPETA ASFALTICA PARA INSTALACIONES ELECTRICAS PARA SEMAFOROS. MATERIALES NECESARIOS, DESPERDICIOS, HERRAMIENTA, EQUIPO Y MANO DE OBRA.","ML",42,null,null,0]
["II.7","LIBRAMIENTO SANTIAGO OCEGUERA Y STA. LUCIA. (13)"]
[null,"I.GUARNICIONES, BANQUETAS Y EQUIPAMIENTO"]
["SPV.II.168","REPARACION DE GUARNICION; INCLUYE: LIMPIEZA DE LA SUPERFICIE, RESANES CON MORTERO CEMENTO-ARENA PROP. 1:4, PASTA PARA ACABADO PULIDO, PEGACRETO, MATERIALES NECESARIOS, DESPERDICIOS, LIMPIEZA DURANTE EL PROCESO, MANO DE OBRA, HERRAMIENTA Y EQUIPO.","ML",8,null,null,{"$f":"ROUND(D264*E264,2)","v":0}]
["SPV.II.169","CONSTRUCCION DE GUARNICION DE CONCRETO F´c=150 kg/cm2. R.N. T.M.A. 19 MM. DE 15X20X40 CM DE SECCION TRAPEZOIDAL, CORTE DE JUNTAS VERTICALES CON CORTADORA DE DISCO DE DIAMANTE A UNA PROFUNDIDAD DE 1/3 DEL PERALTE DE LA GUARNICION, LA MODULACION SERÁ INDICADA POR SUPERVISIÓN, SELLADO DE LA JUNTA CON CINTILLA DE POLIETILENO Y Y SELLADOR AUTONIVELANTE A BASE DE  POLIURETANO-ASFALTO TIPO SONOMERIC 1 Ó SIMILAR. INCLUYE: CIMBRA, DESCIMBRADO, ELABORACION, COLADO, VIBRADO Y CURADO DEL CONCRETO, TRANSPORTE A LA SIGUIENTE POSICION, MATERIALES, MANO DE OBRA Y HERRAMIENTA.","ML",3.13,null,null,0]
["SPV.II.170","CONSTRUCCION DE BANQUETAS DE 8 CM DE ESPESOR, ACABADO, PULIDO Y ESCOBILLADO FINO, SE USARA EL SISTEMA DE LOSAS INTERCALADAS CON UNA RELACION LARGO/ANCHO DE HASTA 1.50, JUNTAS FRIAS ACABADO CON VOLTEADOR.  EL CONCRETO SERA F´C= 150 KG/CM2. T.M.A. 3/4\". REV. DE 8 A 10 CM PREMEZCLADO ELABORADO EN PLANTA, REFORZADO CON MALLA ELECTROSOLDADA 6-6/10-10; INCLUYE: PREPARACION DE LA SUPERFICIE DEL TERRENO, NIVELACION, AFINE, COMPACTACION AL 95 %, CIMBRA EN FRONTERAS, SUMINISTRO, COLADO, EXTENDIDO DEL CONCRETO, TRAZO Y NIVELACION, SUMINISTRO DE TODOS LOS MATERIALES NECESARIOS, ACARREOS, DESPERDICIOS, MANO DE OBRA,  HERRAMIENTA Y EQUIPO NECESARIO, LIMPIEZA GENERAL ANTES Y UNA VEZ CONCLUIDOS LOS TRABAJOS, CARGA Y ACARREO DE LOS MATERIALES NO UTILIZABLES HASTA EL LUGAR INDICADO POR SUPERVISION.","M2",11.8,null,null,0]
["SPV.II.171","RAMPA DE CONCRETO DE 10CM DE ESPESOR, DE CONCRETO F’C=150 KG/ CM2.  REFORZADO CON MALLA ELECTROSOLDADA 6-6/10-10, ACABADO PULIDO ESCOBILLADO FINO;  INCLUYE: TRAZO Y AFINE DE TERRENO SEGUN SE REQUIERA SIN ESCALONES, MANO DE OBRA, MATERIALES, EQUIPO, HERRAMIENTA Y LIMPIEZA.","M2",8.32,null,null,0]
["SPV.II.172","SUMINISTRO Y COLOCACIÓN DE  PINTURA EN RAMPAS DE TRAFICO DE COLOR AZUL, ACORDE A LAS NORMAS DE SEÑALAMIENTO HORIZONTAL Y DE MATERIALES,  INCLUYE: LIMPIEZA DEL ÁREA A APLICAR , MATERIAL, MANO DE OBRA, EQUIPO Y HERRAMIENTA. P.U.O.T.","M2",8.32,null,null,0]
["SPV.II.173","SUMINISTRO Y APLICACIÓN DE PINTURA VINILICA AHULADA MARCA COMEX, EN COLOR BLANCO O AMARILLO (PREVIAMENTE AUTORIZADO) EN TRAMOS RECTOS Y ROJO EN CURVAS, A DOS MANOS EN GUANICIONES DE CONCRETO, INCLUYE: PREPARACION DE LA SUPERFICIE, LIMPIEZA, MATERIALES, MANO DE OBRA Y HERRAMIENTA.","ML",116,null,null,0]
[null,"II.- SEÑALAMIENTO VERTICAL Y HORIZONTAL"]
["SPV.II.174","SUMINISTRO Y APLICACION DE PINTURA DE MARCAS M-7.1 RAYAS PARA CRUCE DE PEATONES EN VÍAS PRIMARIAS, CON PINTURA TERMOPLÁSTICA COLOR AMARILLO RETRORREFLEJANTE DE 40 CM DE ANCHO,  INCLUYE LIMPIEZA POR ASPERSION PARA ELIMINAR LA PRESENCIA DE POLVO, GRASA, ACEITE Y CUALQUIER MATERIAL, MATERIALES, MANO DE OBRA, HERRAMIENTA Y EQUIPO NECESARIO.","ML",184,null,null,{"$f":"ROUND(D271*E271,2)","v":0}]
["SPV.II.175","SUMINISTRO Y APLICACION DE PINTURA PARA LINEA DE ALTO DE COLOR BLANCO PREVIAMENTE AUTORIZADO POR SUPERVISION CON PINTURA TERMOPLÁSTICA PARA TRAFICO MARCA SEMEX, Y SE LE APLICARA UN REFLEJANTE CON MICROESFERA, Y SU APLICACION SERA SEGUN LO INDICADO EN EL MANUAL DE DISPOSITIVOS PARA EL CONTROL DEL TRANSITO EN CALLES Y CARRETERAS, INCLUYE: LIMPIEZA POR ASPERSION PARA ELIMINAR LA PRESENCIA DE POLVO, GRASA, ACEITE Y CUALQUIER MATERIAL, MATERIALES, MANO DE OBRA, HERRAMIENTA Y EQUIPO NECESARIO. P.U.O.T. ","ML",20,null,null,0]
["SPV.II.176","SUMINISTRO Y APLICACION DE PINTURA PARA FLECHAS, LETRAS, NUMEROS DE COLOR BLANCO PREVIAMENTE AUTORIZADO POR SUPERVISION CON PINTURA TERMOPLÁSTICA PARA TRAFICO MARCA SEMEX, Y SE LE APLICARA UN REFLEJANTE CON MICROESFERA, Y SU APLICACION SERA SEGUN LO INDICADO EN EL MANUAL DE DISPOSITIVOS PARA EL CONTROL DEL TRANSITO EN CALLES Y CARRETERAS, INCLUYE: LIMPIEZA POR ASPERSION PARA ELIMINAR LA PRESENCIA DE POLVO, GRASA, ACEITE Y CUALQUIER MATERIAL, MATERIALES, MANO DE OBRA, HERRAMIENTA Y EQUIPO NECESARIO. P.U.O.T. ","PZA",4,null,null,0]
[null,"III.-INSTALACIONES ESPECIALES"]
["SPV.II.177","CONSTRUCCION DE BASE DE CONCRETO PARA ESTRUCTURA TIPO CONTEMPORANEA DE CONCRETO F’C=200 KG/CM² CON DIMENSIONES DE 0.70 M X 0.70 M X 2.00 M Y 8 ANCLAS DE ACERO DE ALTA RESISTENCIA ROSCADAS EN SU PARTE SUPERIOR, DE 1” DE DIÁMETRO POR 2.00 M DE LONGITUD.,INCLUYE: JUEGO DE 2 ANCLAS DE 1\"X200CM DE ACERO DE ALTA RESISTENCIA, 15 CM DE ROSCA, CON PUNTAS GALV. Y TORN.\n","PZA",3,null,null,{"$f":"ROUND(D275*E275,2)","v":0}]
["SPV.II.178","CONSTRUCCION DE BASE DE CONCRETO PARA EL POSTE DEL CONTROLADOR, A BASE DE CONCRETO F’C=200 KG/CM² CON DIMENSIONES DE 0.48 M X 0.65 M X 1.00 M Y 4 ANCLAS DE ACERO DE ALTA RESISTENCIA ROSCADAS EN SU PARTE SUPERIOR, DE 5/8” DE DIÁMETRO POR 0.60 M DE LONGITUD.,INCLUYE: MATERIALES, MANO DE OBRA, HERRAMIENTA Y EQUIPO NECESARIO.\n","PZA",1,null,null,0]
["SPV.II.179","SUMINISTRO Y COLOCACIÓN DE REGISTRO ELÉCTRICO  PREFABRICADO DE 40x60x60 Cm, A BASE DE CONCRETO F'c = 150 Kg/Cm2. T.M.A. 3/4\". REV. DE 8 A 10 CMS. CON UN ESPESOR DE 10 CMS. PISO DE GRAVA, APLANADO INTERIOR PULIDO FINO, MARCO Y CONTRAMARCO METALICOS GALVANIZADOS ÁNGULO 1 1/2\"x 1/4\" Y TAPA DE CONCRETO ARMADO CON VARILLA CORRUGADA ALTA RESISTENCIA DEL No.2 @ 10 CMS. AMBOS SENTIDOS SOLDADAS, F'c = 250 Kg/Cm2. T.M.A. 3/4\". REVENIMIENTO DE 8 A 10 CMS. INCLUYE: EXCAVACION EN TERRENO INVESTIGADO EN SITIO, RELLENO COMPACTADO AL 90% MINIMO, CON MATERIAL SELECCIONADO PRODUCTO DE LA EXCAVACIÓN LIBRE DE BOLEO MAYOR DE 3\", NIVELADO A N.P.T., MANIOBRAS, MATERIALES, MANO DE OBRA, HERRAMIENTA Y EQUIPO NECESARIO","PZA",4,null,null,0]
["SPV.II.180","SUMINISTRO Y COLOCACION DE ESTRUCTURA PARA SEMAFORO TIPO CONTEMPORANEA SENCILLA A BASE DETUBO DE ACERO A-53 DE 8” DIÁMETRO (8.625 NOMINAL) Y ESPESOR DE 3/16”, CON 550 CM DE ALTURA, CON PLACA BASE DE ¾” X 50 CM DE DIÁMETRO, UNIDA CON 8 CARTABONES TRIANGULARES DE FO. DE ¼” DE 7 X 15 CM Y UNA PLACA UNIÓN (ENTRE POSTE Y BRAZO) DE 3/4” X 40 X 40 CM; UN REGISTRO ELÉCTRICO EN SU BASE, FABRICADO DE SOLERA CAL. 10 DE 3.8 X 19 CM CON TAPA DE ALUMINIO Y UN MEDIO COPLE EN EL POSTE DE 1 ½” DE DIÁMETRO, CON ACCESORIOS PARA LA COLOCACIÓN DE SEMÁFOROS COMO SON: NIPLE DE 1 ½” CÉDULA 40, CODO 90° CÉDULA 40 1 ½”, CONTRATUERCA DE 1 ½”, HERRAJE PARA POSTE DE 12 X 25.5 CM, TAPÓN PARA SEMÁFORO, TUERCA CUADRADA DE 3/16” Y LÁMINA CAL. 16 DE 2.5 X 7 CM. CON 1 BRAZO: SERÁ FABRICADO CON TUBO DE ACERO A-53 DE 8” DE DIÁMETRO ROLADO (8.625 NOMINAL) Y ESPESOR DE 3/16” CON UNA LONGITUD DE BRAZO VARIABLE, DE ACUERDO A PROYECTO, PLACA UNIÓN (ENTRE POSTE Y BRAZO) DE 3/4” DE 40 X 40 CM UNIDA CON 8 CARTABONES ESPECIALES DE FO. DE 1/2” X 17 X 15 CM, ACCESORIOS PARA LA COLOCACIÓN DE SEMÁFOROS: CUATRO MEDIOS COPLES DE 1 ½” DE DIÁMETRO, CUATRO NIPLES DE 1 ½” CÉDULA 40, CUATRO CODOS A 90° CÉDULA. 40 1 ½”, CUATRO CONTRATUERCAS DE 1 ½”, DOS TORNILLOS OPRESORES DE ¼”, DOS NIPLES DE 2” CÉDULA 40 DE 10 CM DE LONGITUD Y DOS NIPLES DE 1 ½” CÉDULA 40 DE 24 CM DE LONGITUD. TODA LA ESTRUCTURA DEBERÁ SER GALVANIZADA, CON ACABADO FONDO ANTICORROSIVO Y PINTURA DEL COLOR DE ACUERDO AL PROYECTO Y REGLAMENTOS VIGENTES DE LA CIUDAD.: INCLUYE: MANIOBRAS, MATERIALES, MANO DE OBRA, HERRAMIENTA Y EQUIPO NECESARIO. ","PZA",3,null,null,0]
["SPV.II.181","SUMINISTRO E INSTALACION DE POSTE GALVANIZADO PARA CONTROLADOR C-210; INCLUYE: MATERIALES NECESARIOS, MANIOBRAS, CONSUMIBLES, DESPERDICIOS, HERRAMIENTA, EQUIPO Y MANO DE OBRA.","PZA",1,null,null,0]
["SPV.II.182","SUMINISTRO E INSTALACION DE SEMAFORO EN EXTREMO: INCLUYE: SEMAFORO DE 4 LUCES DE 30cmS DE DIAMETRO FAB, EN POOLICARBONATO DE ALTO IMPACTO COLOR NEGRO CON DIODOS ELECROLULIMINCENTES TIPO LED´S TRANSPARENTES DE ALTA INTENSIDAD, HERRAJE TIPO TELEFONO Y TUERCAS NIPLE DE ALUMINIO DE 38mm, ","PZA",6,null,null,0]
["SPV.II.183","SUMINISTRO, INSTALACION Y PROGRAMACION DE CONTROL ELECTRÓNICO C-210. INCLUYE :  INSTALACION Y PROGRAMACION DE CONTROL, SUMINISTRO DE MATERIALES,  HERRAMIENTA, EQUIPO, DESPERDICIOS Y MANO DE OBRA.","PZA",1,null,null,0]
[null,"IV. INSTALACIONES ELECTRICAS Y DE CONTROL"]
["SPV.II.184","SUMINISTRO E INSTALACION DE CABLE DE USO RUDO 5X14,  INCLUYE CARGO DIRECTO POR EL COSTO DE MANO DE OBRA Y MATERIALES REQUERIDOS, FLETE A OBRA, ACARREO, CORTE, COLOCACIÓN, CINTA AISLANTE, CINTA VULCANIZABLE, CONECTORES PONCHABLES BIMETALICOS (PUROS) EN CALIBRE ADECUADO, FIJACIÓN, LIMPIEZA Y RETIRO DE SOBRANTES FUERA DE OBRA, EQUIPO DE SEGURIDAD, INSTALACIONES ESPECÍFICAS, DEPRECIACIÓN Y DEMÁS CARGOS DERIVADOS DEL USO DE EQUIPO Y HERRAMIENTA, EN CUALQUIER NIVEL.","ML",300,null,null,{"$f":"ROUND(D283*E283,2)","v":0}]
["SPV.II.185","SUMINISTRO Y COLOCACIÓN DE CABLE DE ALUMINIO TRIPLEX XLP No. (2-4+1-4 ) (SUBTERRANEO) EN CANALIZACIÓN ELÉCTRICA, INCLUYE CARGO DIRECTO POR EL COSTO DE MANO DE OBRA Y MATERIALES REQUERIDOS, FLETE A OBRA, ACARREO, CORTE, COLOCACIÓN, CINTA AISLANTE, CINTA VULCANIZABLE, CONECTORES PONCHABLES BIMETALICOS (PUROS) EN CALIBRE ADECUADO, FIJACIÓN, LIMPIEZA Y RETIRO DE SOBRANTES FUERA DE OBRA, EQUIPO DE SEGURIDAD, INSTALACIONES ESPECÍFICAS, DEPRECIACIÓN Y DEMÁS CARGOS DERIVADOS DEL USO DE EQUIPO Y HERRAMIENTA, EN CUALQUIER NIVEL.","ML",20,null,null,0]
["SPV.II.186","SUMINISTRO Y TENDIDO DE RED DE ALIMENTACIÓN DE LUMINARIAS A BASE DE TUBO PVC CONDUIT PESADO DE 1 1/4 \", INCLUYE: EXCAVACIÓN, CAMA DE ARENA, TENDIDO, RELLENO, MATERILES, MANO DE OBRA, HERRAMIENTA Y EQUIPO NECESARIO PARA SU BUEN FUNCIONAMIENTO.","ML",20,null,null,0]
["SPV.II.187","SUMINISTRO Y COLOCACIÓN DE INTERRUPTOR TERMOMAGENICO SENCILLO DE  40 A , SEGÚN SE REQUIERA MARCA SQUARE D, ALUMBRADO 15 A, CONTACTOS 15 A, INCLUYE INSTALACIÓN, CONEXIÓN AJUSTES Y TODO LO NECESARIO PARA SU CORRECTA INSTALACIÓN","PZA",1,null,null,0]
["SPV.II.188","SUMINISTRO  E INSTALACION DE ALIMENTACIÓN ELECTRICA DE PARA CENTRO DE CARGA DE 2 CIRCUITOS,  A BASE DE TUBERIA FLEXIBLE TIPO LIQUID TIGHT DE 1/2  \", DOS CONDUCTORES DE COBRE CALIBRE 10 AWG PARA FASES,1 CONDUCTOR DE COBRE CALIBRE 14 AWG PARA TIERRA FISICA. INCLUYE:  CONEXION  DE CABLEADO EN  OPRESORES DE BRAKE PRINCIPAL DE  MURETE,  MATERILES, MANO DE OBRA, HERRAMIENTA Y EQUIPO NECESARIO PARA SU BUEN FUNCIONAMIENTO.","LOTE",1,null,null,0]
["SPV.II.189","DEMOLICIÓN Y REPOSICION DE CONCRETO O CARPETA ASFALTICA EN SANJA DE 30 CM DE ANCHO; INCLUYE CORTE CON REHILETE, DEMOLICIÓN, RETIRO DE ESCOMBRO, COLADO Y RESANADO CON CONCRETO F'C=150KG/CM2 O REPOSICION DE CARPETA ASFALTICA PARA INSTALACIONES ELECTRICAS PARA SEMAFOROS. MATERIALES NECESARIOS, DESPERDICIOS, HERRAMIENTA, EQUIPO Y MANO DE OBRA.","ML",20,null,null,0]
["III","POTENCIALIZACION DE SEMAFOROS"]
["III.1","LIB. DANIEL ROLDAN Y CONSTITUYENTES DE 1975 "]
["PT.III.1","SUMINISTRO, INSTALACION Y PROGRAMACION DE CONTROL ELECTRÓNICO C-210, COMPLETOS CON GPS. INCLUYE :  INSTALACION Y PROGRAMACION DE CONTROL, SUMINISTRO DE MATERIALES,  HERRAMIENTA, EQUIPO, DESPERDICIOS Y MANO DE OBRA.","PZA",1,null,null,{"$f":"ROUND(D291*E291,2)","v":0}]
["PT.III.2","SUMINISTRO E INSTALACION DE CABLE DE USO RUDO 5X14,  INCLUYE CARGO DIRECTO POR EL COSTO DE MANO DE OBRA Y MATERIALES REQUERIDOS, FLETE A OBRA, ACARREO, CORTE, COLOCACIÓN, CINTA AISLANTE, CINTA VULCANIZABLE, CONECTORES PONCHABLES BIMETALICOS (PUROS) EN CALIBRE ADECUADO, FIJACIÓN, LIMPIEZA Y RETIRO DE SOBRANTES FUERA DE OBRA, EQUIPO DE SEGURIDAD, INSTALACIONES ESPECÍFICAS, DEPRECIACIÓN Y DEMÁS CARGOS DERIVADOS DEL USO DE EQUIPO Y HERRAMIENTA, EN CUALQUIER NIVEL.","ML",200,null,null,0]
["PT.III.3","SUMINISTRO E INSTALACION DE SEMAFORO EN EXTREMO: INCLUYE: SEMAFORO DE 4 LUCES DE 30cmS DE DIAMETRO FAB, EN POOLICARBONATO DE ALTO IMPACTO COLOR NEGRO CON DIODOS ELECROLULIMINCENTES TIPO LED´S TRANSPARENTES DE ALTA INTENSIDAD, HERRAJE TIPO TELEFONO Y TUERCAS NIPLE DE ALUMINIO DE 38mm, ","PZA",6,null,null,0]
["III.2","LIB. DANIEL ROLDAN Y BLVD. GRAL. AGUSTÍN OLACHEA. \n\n"]
["PT.III.4","SUMINISTRO, INSTALACION Y PROGRAMACION DE CONTROL ELECTRÓNICO C-210, COMPLETOS CON GPS. INCLUYE :  INSTALACION Y PROGRAMACION DE CONTROL, SUMINISTRO DE MATERIALES,  HERRAMIENTA, EQUIPO, DESPERDICIOS Y MANO DE OBRA.","PZA",1,null,null,{"$f":"ROUND(D295*E295,2)","v":0}]
["PT.III.5","SUMINISTRO E INSTALACION DE SEMAFORO EN EXTREMO: INCLUYE: SEMAFORO DE 4 LUCES DE 30cmS DE DIAMETRO FAB, EN POOLICARBONATO DE ALTO IMPACTO COLOR NEGRO CON DIODOS ELECROLULIMINCENTES TIPO LED´S TRANSPARENTES DE ALTA INTENSIDAD, HERRAJE TIPO TELEFONO Y TUERCAS NIPLE DE ALUMINIO DE 38mm, ","PZA",5,null,null,0]
["III.3","LIB. DANIEL ROLDAN Y ACCESO PLAZA PASEO "]
[null,"I.-INSTALACIONES ESPECIALES"]
["PT.III.6","SUMINISTRO, INSTALACION Y PROGRAMACION DE CONTROL ELECTRÓNICO C-210, COMPLETOS CON GPS. INCLUYE :  INSTALACION Y PROGRAMACION DE CONTROL, SUMINISTRO DE MATERIALES,  HERRAMIENTA, EQUIPO, DESPERDICIOS Y MANO DE OBRA.","PZA",1,null,null,{"$f":"ROUND(D299*E299,2)","v":0}]
["PT.III.7","SUMINISTRO E INSTALACION DE CABLE DE USO RUDO 5X14,  INCLUYE CARGO DIRECTO POR EL COSTO DE MANO DE OBRA Y MATERIALES REQUERIDOS, FLETE A OBRA, ACARREO, CORTE, COLOCACIÓN, CINTA AISLANTE, CINTA VULCANIZABLE, CONECTORES PONCHABLES BIMETALICOS (PUROS) EN CALIBRE ADECUADO, FIJACIÓN, LIMPIEZA Y RETIRO DE SOBRANTES FUERA DE OBRA, EQUIPO DE SEGURIDAD, INSTALACIONES ESPECÍFICAS, DEPRECIACIÓN Y DEMÁS CARGOS DERIVADOS DEL USO DE EQUIPO Y HERRAMIENTA, EN CUALQUIER NIVEL.","ML",400,null,null,0]
["PT.III.8","SUMINISTRO E INSTALACION DE SEMAFORO EN EXTREMO: INCLUYE: SEMAFORO DE 4 LUCES DE 30cmS DE DIAMETRO FAB, EN POOLICARBONATO DE ALTO IMPACTO COLOR NEGRO CON DIODOS ELECROLULIMINCENTES TIPO LED´S TRANSPARENTES DE ALTA INTENSIDAD, HERRAJE TIPO TELEFONO Y TUERCAS NIPLE DE ALUMINIO DE 38mm, ","PZA",3,null,null,0]
["III.4","LIB. JUAN DE DIOS ANGULO Y BLVD. AGUSTÍN OLACHEA "]
[null,"I.-INSTALACIONES ESPECIALES"]
["PT.III.9","SUMINISTRO, INSTALACION Y PROGRAMACION DE CONTROL ELECTRÓNICO C-210, COMPLETOS CON GPS. INCLUYE :  INSTALACION Y PROGRAMACION DE CONTROL, SUMINISTRO DE MATERIALES,  HERRAMIENTA, EQUIPO, DESPERDICIOS Y MANO DE OBRA.","PZA",1,null,null,{"$f":"ROUND(D304*E304,2)","v":0}]
["PT.III.10","SUMINISTRO E INSTALACION DE SEMAFORO EN EXTREMO: INCLUYE: SEMAFORO DE 4 LUCES DE 30cmS DE DIAMETRO FAB, EN POOLICARBONATO DE ALTO IMPACTO COLOR NEGRO CON DIODOS ELECROLULIMINCENTES TIPO LED´S TRANSPARENTES DE ALTA INTENSIDAD, HERRAJE TIPO TELEFONO Y TUERCAS NIPLE DE ALUMINIO DE 38mm, ","PZA",5,null,null,0]
["IV","EQUIPAMIENTO"]
["IV.1","I.-INSTALACIONES ESPECIALES"]
[{"$f":"MAX(A302:A307)+1","v":1},"SUMINISTRO DE PROGRAMADOR C-26. INCLUYE FLETE Y TRANSPORTE HASTA EL LUGAR INDICADO POR SUPERVISION.","PZA",1,null,null,{"$f":"ROUND(D308*E308,2)","v":0}]
[]
[null,null,null,null,"SUBTOTAL:","SUBTOTAL:",{"$f":"G12+G63+G289+G306","v":0}]
[null,null,null,null,"IVA:","IVA:",{"$f":"G310*0.16","v":0}]
[null,null,null,null,"TOTAL:","TOTAL:",{"$f":"SUM(G310:G311)","v":0}]
[]
[]
[]
[null,"IMPORTE AGREGAR $200,580.99 "]